Workbook

Sheet Feuil1 (hidden)
R4: Répartioitn des representés entre les présents
A5: rang | C5: Tantièmes | D5: 2018 | F5: 2017 | H5: 2016 | K5: =C5 -> Tantièmes | L5: Présents | N5: Porteur max | O5: % | P5: Acquis | R5: Autrre calcul répartition representés | U5: Dugied 2
A6: =RANK(C6,C$6:C$44) -> 22 | C6: 250 | D6: Azemard | F6: =D6 -> Azemard | H6: =D6 -> Azemard | K6: =C6 -> 250 | L6: =SUM(K6:K16) -> 3641 | N6: =C6+ROUND(L$19,0) -> 484 | O6: =N6/N$18 -> 0.07505039541 | R6: =C6+M$19 -> 509 | S6: =R6/(L$6+L$18) -> 0.07842835131 | U6: =ROUND(C6+M$20,0) -> 487 | V6: =U6/(L$6+L$18) -> 0.0750385208
A7: 3 | C7: 434 | D7: Barthes | F7: Barthes | H7: Barthes | I7: 3 | K7: =C7 -> 434 | N7: =C7+ROUND(L$19,0) -> 668 | O7: =N7/N$18 -> 0.1035819507 | R7: =C7+M$19 -> 693 | S7: =R7/(L$6+L$18) -> 0.106779661 | U7: =ROUND(C7+M$20,0) -> 671 | V7: =U7/(L$6+L$18) -> 0.1033898305
A8: 4 | C8: 406 | D8: Boituzat | F8: =D8 -> Boituzat | H8: Boituzat | I8: 3 | K8: 406 | N8: 640 | O8: 0.09924019228 | R8: 665 | S8: 0.1024653313 | U8: 643 | V8: 0.09907550077
A9: 9 | C9: 323 | D9: Carayol | F9: Carayol | H9: Carayol | I9: 3 | K9: 323 | N9: 557 | O9: 0.08636997984 | R9: 582 | S9: 0.08967642527 | U9: 560 | V9: 0.08628659476
A10: 16 | C10: 281 | D10: Diconne | F10: Diconne | H10: Diconne | I10: 3 | K10: 281 | N10: 515 | O10: 0.07985734222 | R10: 540 | S10: 0.08320493066 | U10: 518 | V10: 0.07981510015
A11: 13 | C11: 306 | D11: Hamelin | F11: Hamelin | H11: Hamelin | I11: 3 | K11: 306 | N11: 540 | O11: 0.08373391223 | P11: =O11 -> 0.08373391223 | R11: 565 | S11: 0.08705701079 | T11: =S11 -> 0.08705701079 | U11: 543 | V11: 0.08366718028 | W11: =V11 -> 0.08366718028
A12: 5 | C12: 379 | D12: Ortega | F12: Ortega | H12: Ortega | I12: 2 | K12: 379 | N12: 613 | O12: 0.09505349667 | R12: 638 | S12: 0.09830508475 | U12: 616 | V12: 0.09491525424
A13: 14 | C13: 301 | D13: Cvautravers | F13: Cvautravers | H13: Cvautravers | I13: 3 | K13: 301 | N13: 535 | O13: 0.08295859823 | R13: 560 | S13: 0.08628659476 | U13: 538 | V13: 0.08289676425
A14: 30 | C14: 209 | D14: Villard Toddi | F14: Villard Toddi | H14: Villard Toddi | I14: 2 | K14: 209 | N14: 443 | O14: 0.06869282059 | R14: 468 | S14: 0.07211093991 | U14: 446 | V14: 0.0687211094
A15: 12 | C15: 308 | D15: Vivona | F15: Vivona | H15: Vivona | I15: 3 | K15: 308 | N15: 542 | O15: 0.08404403784 | P15: =O15 -> 0.08404403784 | R15: 567 | S15: 0.0873651772 | T15: =S15 -> 0.0873651772 | U15: 545 | V15: 0.08397534669 | W15: =V15 -> 0.08397534669
A16: 2 | C16: 444 | D16: Dugied | K16: 444 | N16: =C16+2*ROUND(L$19,0) -> 912 | O16: 0.141417274 | P16: =O16 -> 0.141417274 | R16: 703 | S16: 0.1083204931 | T16: =S16 -> 0.1083204931 | U16: 681 | V16: 0.1049306626 | W16: =V16 -> 0.1049306626
A17: 35 | C17: 43 | D17: Catteau | F17: =D17 -> Catteau | H17: =D17 -> Catteau | I17: 1 | L17: Representés | M17: Max 10% | N17: Total Porteur max | R17: =SUM(R6:S16) -> 6491 | S17: =SUM(S6:S16) -> 1 | U17: 280
A18: 10 | C18: 321 | D18: CA | F18: CA | H18: =D18 -> CA | J18: 3 | K18: 321 | L18: =SUM(K17:K31) -> 2849 | M18: =10%*C45 -> 992.2 | N18: =SUM(N6:N16) -> 6449 | O18: =SUM(O6:O16) -> 1 | P18: =SUM(P6:P16) -> 0.3091952241 | R18: =R17-(L6+L18) -> 1 | T18: =SUM(T6:T16) -> 0.282742681 | W18: =SUM(W6:W16) -> 0.2725731895
A19: 15 | C19: 285 | D19: Decarne | F19: Decarne | H19: =D19 -> Decarne | J19: 3 | K19: 285 | L19: =AVERAGE(C17:C31) -> 234.0666667 | M19: =L18/COUNT(C6:C16) -> 259
A20: 23 | C20: 249 | D20: Desbordes | F20: Desbordes | H20: =D20 -> Desbordes | J20: 3 | K20: 249 | L20: Moyenne | M20: =L18/((COUNT(C6:C16)+1)) -> 237.4166667
A21: 6 | C21: 353 | D21: Fraval | F21: Fraval | H21: =D21 -> Fraval
A22: 36 | C22: 36 | D22: Gallard Justeau | F22: Gallard Justeau
A23: 27 | C23: 218 | D23: Gerbaud | F23: Gerbaud | H23: =D23 -> Gerbaud | J23: 2 | K23: 218
A24: 24 | C24: 245 | D24: Hugo | F24: Hugo | H24: Hugo | J24: 3 | K24: 245
A25: 26 | C25: 230 | D25: Mandrile | F25: Mandrile | H25: Mandrile
A26: 33 | C26: 187 | D26: Martinez | F26: Martinez | H26: Martinez | J26: 3 | K26: 187
A27: 8 | C27: 337 | D27: Morana | F27: Morana | H27: Morana | J27: 3 | K27: 337
A28: 21 | C28: 264 | D28: Morana P | F28: Morana P | H28: Morana P | J28: 3 | K28: 264
A29: 18 | C29: 265 | D29: Ortega | F29: Ortega | H29: Ortega | J29: 2 | K29: 265
A30: 17 | C30: 268 | D30: Segura Mari | F30: Segura Mari | H30: Segura Mari | J30: 3 | K30: 268
A31: 29 | C31: 210 | D31: Simoncini | F31: Simoncini | H31: Simoncini | J31: 2 | K31: 210
A32: 38 | C32: 7 | D32: Berthezene | F32: Berthezene | H32: Berthezene
A33: 1 | C33: 633 | D33: DKS | F33: DKS | H33: DKS
A34: 38 | C34: 7 | D34: Fadda | F34: Fadda | H34: Fadda
A35: 31 | C35: 202 | D35: Leveau | F35: Leveau
A36: 28 | C36: 214 | D36: Megie | F36: Megie | H36: =D36 -> Megie
A37: 7 | C37: 340 | D37: Morana AM | F37: Morana AM | H37: =D37 -> Morana AM
A38: 18 | C38: 265 | D38: Morana L | F38: Morana L | H38: =D38 -> Morana L
A39: 32 | C39: 201 | D39: Optimo | F39: Optimo | H39: =D39 -> Optimo
A40: 34 | C40: 51 | D40: Piochot | F40: Piochot
A41: 11 | C41: 317 | D41: Pouillot | F41: Pouillot | H41: =D41 -> Pouillot
A42: 18 | C42: 265 | D42: Ramirez | F42: Ramirez | H42: =D42 -> Ramirez
A43: 24 | C43: 245 | D43: Ventajou | F43: Ventajou | H43: =D43 -> Ventajou
A44: 37 | C44: 23 | D44: Vernet | F44: Vernet | H44: =D44 -> Vernet
C45: =SUM(C6:C44) -> 9922 | F45: Présences durant les AG
C46: Rouge | D46: Abs sans pouvoir
C47: Vert | D47: Pouvoir
C48: Noir | D48: Présent
B50: Nombre lots ou copropriétaires : | E50: =COUNT(A6:A44) -> 39

Sheet Feuil2 (hidden)
B2: Tantièmes | C2: Nom | E2: Tantièmes | F2: Nom | H2: Tantièmes | I2: Nom
B3: 250 | C3: Azemard | E3: 7 | F3: Berthezene | H3: 250 | I3: Azemard | J3: =SUM(H3:H13) -> 3641 | K3: =J3/B42 -> 0.366962306 | L3: =COUNT(H3:H13) -> 11
B4: 434 | C4: Barthes | E4: 7 | F4: Fadda | H4: 434 | I4: Barthes
B5: 7 | C5: Berthezene | E5: 23 | F5: Vernet | H5: 406 | I5: Boituzat
B6: 406 | C6: Boituzat | E6: 36 | F6: Gallard Justeau | H6: 323 | I6: Carayol
B7: 321 | C7: CA | E7: 43 | F7: Catteau | H7: 301 | I7: Cvautravers
B8: 323 | C8: Carayol | E8: 51 | F8: Piochot | H8: 281 | I8: Diconne
B9: 43 | C9: Catteau | E9: 187 | F9: Martinez | H9: 444 | I9: Dugied
B10: 301 | C10: Cvautravers | E10: 201 | F10: Optimo | H10: 306 | I10: Hamelin
B11: 285 | C11: Decarne | E11: 202 | F11: Leveau | H11: 379 | I11: Ortega
B12: 249 | C12: Desbordes | E12: 209 | F12: Villard Toddi | H12: 209 | I12: Villard Toddi
B13: 281 | C13: Diconne | E13: 210 | F13: Simoncini | H13: 308 | I13: Vivona
B14: 633 | C14: DKS | E14: 214 | F14: Megie | H14: 321 | I14: CA | J14: =SUM(H14:H28) -> 3511 | K14: =J14/B42 -> 0.3538601088 | L14: =COUNT(H14:H28) -> 15
B15: 444 | C15: Dugied | E15: 218 | F15: Gerbaud | H15: 43 | I15: Catteau
B16: 7 | C16: Fadda | E16: 230 | F16: Mandrile | H16: 285 | I16: Decarne
B17: 353 | C17: Fraval | E17: 245 | F17: Hugo | H17: 249 | I17: Desbordes
B18: 36 | C18: Gallard Justeau | E18: 245 | F18: Ventajou | H18: 353 | I18: Fraval
B19: 218 | C19: Gerbaud | E19: 249 | F19: Desbordes | H19: 36 | I19: Gallard Justeau
B20: 306 | C20: Hamelin | E20: 250 | F20: Azemard | H20: 218 | I20: Gerbaud
B21: 245 | C21: Hugo | E21: 264 | F21: Morana P | H21: 245 | I21: Hugo
B22: 202 | C22: Leveau | E22: 265 | F22: Morana L | H22: 230 | I22: Mandrile
B23: 230 | C23: Mandrile | E23: 265 | F23: Ortega | H23: 187 | I23: Martinez
B24: 187 | C24: Martinez | E24: 265 | F24: Ramirez | H24: 337 | I24: Morana
B25: 214 | C25: Megie | E25: 268 | F25: Segura Mari | H25: 264 | I25: Morana P
B26: 337 | C26: Morana | E26: 281 | F26: Diconne | H26: 265 | I26: Ortega
B27: 340 | C27: Morana AM | E27: 285 | F27: Decarne | H27: 268 | I27: Segura Mari
B28: 265 | C28: Morana L | E28: 301 | F28: Cvautravers | H28: 210 | I28: Simoncini
B29: 264 | C29: Morana P | E29: 306 | F29: Hamelin | H29: 7 | I29: Berthezene | J29: =SUM(H29:H41) -> 2770 | K29: =J29/B42 -> 0.2791775852
B30: 201 | C30: Optimo | E30: 308 | F30: Vivona | H30: 633 | I30: DKS
B31: 379 | C31: Ortega | E31: 317 | F31: Pouillot | H31: 7 | I31: Fadda
B32: 265 | C32: Ortega | E32: 321 | F32: CA | H32: 202 | I32: Leveau
B33: 51 | C33: Piochot | E33: 323 | F33: Carayol | H33: 214 | I33: Megie
B34: 317 | C34: Pouillot | E34: 337 | F34: Morana | H34: 340 | I34: Morana AM
B35: 265 | C35: Ramirez | E35: 340 | F35: Morana AM | H35: 265 | I35: Morana L
B36: 268 | C36: Segura Mari | E36: 353 | F36: Fraval | H36: 201 | I36: Optimo
B37: 210 | C37: Simoncini | E37: 379 | F37: Ortega | H37: 51 | I37: Piochot
B38: 245 | C38: Ventajou | E38: 406 | F38: Boituzat | H38: 317 | I38: Pouillot
B39: 23 | C39: Vernet | E39: 434 | F39: Barthes | H39: 265 | I39: Ramirez
B40: 209 | C40: Villard Toddi | E40: 444 | F40: Dugied | H40: 245 | I40: Ventajou
B41: 308 | C41: Vivona | E41: 633 | F41: DKS | H41: 23 | I41: Vernet
B42: =SUM(B3:B41) -> 9922
B44: =B41+B20+B17+B15 -> 1411 | C44: Acquis | E44: hors abs | H44: =SUM(H29:H41) -> 2770 | I44: abs
C45: =B44/B42 -> 0.142209232 | E45: =B44/(B42-H44) -> 0.197287472
C47: =C11 -> Decarne | D47: Voisin cloture

Sheet Accueil
A1: CLIQUER SUR L'ICONE | H1: CLIQUER SUR L'ICONE
H2: Accueil | I2: ð
H8: Liste des copropriétaires | I8: ð
H14: Feuille de présence en AG | I14: ð
H19: Vote ordre du jour | I19: ð

Sheet Liste
J1: Pour vote
D2: Nom | E2: Détient | F2: Statut | G2: Pouvoir | J2: Nom | K2: Détient | L2: Statut | M2: Pouvoir
D3: Azemard | E3: 250 | F3: =Présence!E4 -> A | G3: =Présence!G$47 -> 0 | J3: Boituzat | K3: 406 | L3: P | M3: 0
D4: Barthes | E4: 434 | F4: =Présence!E5 -> A | G4: =Présence!I$47 -> 0 | J4: Dugied | K4: 444 | L4: P | M4: 0
D5: Berthezene | E5: 7 | F5: =Présence!E6 -> A | G5: =Présence!K$47 -> 0 | J5: Fraval | K5: 353 | L5: P | M5: 0
D6: Boituzat | E6: 406 | F6: =Présence!E7 -> P | G6: =Présence!M$47 -> 0 | J6: Martinez | K6: 187 | L6: P | M6: 306
D7: Crédit Agric. | E7: 321 | F7: =Présence!E8 -> A | G7: =Présence!O$47 -> 0 | J7: Ortega J. | K7: 379 | L7: P | M7: 0
D8: Carayol | E8: 323 | F8: =Présence!E9 -> A | G8: =Présence!Q$47 -> 0 | J8: Vivona | K8: 308 | L8: P | M8: 0
D9: Catteau | E9: 43 | F9: =Présence!E10 -> A | G9: =Présence!S$47 -> 0 | J9: Hamelin | K9: 306 | L9: M | M9: 0
D10: Decarne | E10: 285 | F10: =Présence!E11 -> A | G10: =Présence!U$47 -> 0 | J10: Azemard | K10: 250 | L10: A | M10: 0
D11: Desbordes | E11: 249 | F11: =Présence!E12 -> A | G11: =Présence!W$47 -> 0 | J11: Barthes | K11: 434 | L11: A | M11: 0
D12: Diconne | E12: 281 | F12: =Présence!E13 -> A | G12: =Présence!Y$47 -> 0 | J12: Berthezene | K12: 7 | L12: A | M12: 0
D13: DKS | E13: 633 | F13: =Présence!E14 -> A | G13: =Présence!AA$47 -> 0 | J13: Crédit Agric. | K13: 321 | L13: A | M13: 0
D14: Dugied | E14: 444 | F14: =Présence!E15 -> P | G14: =Présence!AC$47 -> 0 | J14: Carayol | K14: 323 | L14: A | M14: 0
D15: Fadda | E15: 7 | F15: =Présence!E16 -> A | G15: =Présence!AE$47 -> 0 | J15: Catteau | K15: 43 | L15: A | M15: 0
D16: Fraval | E16: 353 | F16: =Présence!E17 -> P | G16: =Présence!AG$47 -> 0 | J16: Decarne | K16: 285 | L16: A | M16: 0
D17: Gallard Justeau | E17: 36 | F17: =Présence!E18 -> A | G17: =Présence!AI$47 -> 0 | J17: Desbordes | K17: 249 | L17: A | M17: 0
D18: Gerbaud | E18: 218 | F18: =Présence!E19 -> A | G18: =Présence!AK$47 -> 0 | J18: Diconne | K18: 281 | L18: A | M18: 0
D19: Hamelin | E19: 306 | F19: =Présence!E20 -> M | G19: =Présence!AM$47 -> 0 | J19: DKS | K19: 633 | L19: A | M19: 0
D20: Hugo | E20: 245 | F20: =Présence!E21 -> A | G20: =Présence!AO$47 -> 0 | J20: Fadda | K20: 7 | L20: A | M20: 0
D21: Leveau | E21: 202 | F21: =Présence!E22 -> A | G21: =Présence!AQ$47 -> 0 | J21: Gallard Justeau | K21: 36 | L21: A | M21: 0
D22: Mandrile | E22: 230 | F22: =Présence!E23 -> A | G22: =Présence!AS$47 -> 0 | J22: Gerbaud | K22: 218 | L22: A | M22: 0
D23: Martinez | E23: 187 | F23: =Présence!E24 -> P | G23: =Présence!AU$47 -> 306 | J23: Hugo | K23: 245 | L23: A | M23: 0
D24: Megie | E24: 214 | F24: =Présence!E25 -> A | G24: =Présence!AW$47 -> 0 | J24: Leveau | K24: 202 | L24: A | M24: 0
D25: Morana F. | E25: 337 | F25: =Présence!E26 -> A | G25: =Présence!AY$47 -> 0 | J25: Mandrile | K25: 230 | L25: A | M25: 0
D26: Morana AM | E26: 340 | F26: =Présence!E27 -> A | G26: =Présence!BA$47 -> 0 | J26: Megie | K26: 214 | L26: A | M26: 0
D27: Morana L | E27: 265 | F27: =Présence!E28 -> A | G27: =Présence!BC$47 -> 0 | J27: Morana F. | K27: 337 | L27: A | M27: 0
D28: Morana P | E28: 264 | F28: =Présence!E29 -> A | G28: =Présence!BE$47 -> 0 | J28: Morana AM | K28: 340 | L28: A | M28: 0
D29: Optimo SCI | E29: 201 | F29: =Présence!E30 -> A | G29: =Présence!BG$47 -> 0 | J29: Morana L | K29: 265 | L29: A | M29: 0
D30: Ortega J. | E30: 379 | F30: =Présence!E31 -> P | G30: =Présence!BI$47 -> 0 | J30: Morana P | K30: 264 | L30: A | M30: 0
D31: Ortega S. | E31: 265 | F31: =Présence!E32 -> A | G31: =Présence!BK$47 -> 0 | J31: Optimo SCI | K31: 201 | L31: A | M31: 0
D32: Piochot | E32: 51 | F32: =Présence!E33 -> A | G32: =Présence!BM$47 -> 0 | J32: Ortega S. | K32: 265 | L32: A | M32: 0
D33: Pouillot | E33: 317 | F33: =Présence!E34 -> A | G33: =Présence!BO$47 -> 0 | J33: Piochot | K33: 51 | L33: A | M33: 0
D34: Ramirez | E34: 265 | F34: =Présence!E35 -> A | G34: =Présence!BQ$47 -> 0 | J34: Pouillot | K34: 317 | L34: A | M34: 0
D35: Segura Mari | E35: 268 | F35: =Présence!E36 -> A | G35: =Présence!BS$47 -> 0 | J35: Ramirez | K35: 265 | L35: A | M35: 0
D36: Simoncini | E36: 210 | F36: =Présence!E37 -> A | G36: =Présence!BU$47 -> 0 | J36: Segura Mari | K36: 268 | L36: A | M36: 0
D37: Vautravers | E37: 301 | F37: =Présence!E38 -> A | G37: =Présence!BW$47 -> 0 | J37: Simoncini | K37: 210 | L37: A | M37: 0
D38: Ventajou | E38: 245 | F38: =Présence!E39 -> A | G38: =Présence!BY$47 -> 0 | J38: Vautravers | K38: 301 | L38: A | M38: 0
D39: Vernet | E39: 23 | F39: =Présence!E40 -> A | G39: =Présence!CA$47 -> 0 | J39: Ventajou | K39: 245 | L39: A | M39: 0
D40: Villard Toddi | E40: 209 | F40: =Présence!E41 -> A | G40: =Présence!CC$47 -> 0 | J40: Vernet | K40: 23 | L40: A | M40: 0
D41: Vivona | E41: 308 | F41: =Présence!E42 -> P | G41: =Présence!CE$47 -> 0 | J41: Villard Toddi | K41: 209 | L41: A | M41: 0

Sheet Présence
G1: =E4 -> A | I1: =E5 -> A | K1: =E6 -> A | M1: =E7 -> P | O1: =E8 -> A | Q1: =E9 -> A | S1: =E10 -> A | U1: =E11 -> A | W1: =E12 -> A | Y1: =E13 -> A | AA1: =E14 -> A | AC1: =E15 -> P | AE1: =E16 -> A | AG1: =E17 -> P | AI1: =E18 -> A | AK1: =E19 -> A | AM1: =E20 -> M | AO1: =E21 -> A | AQ1: =E22 -> A | AS1: =E23 -> A | AU1: =E24 -> P | AW1: =E25 -> A | AY1: =E26 -> A | BA1: =E27 -> A | BC1: =E28 -> A | BE1: =E29 -> A | BG1: =E30 -> A | BI1: =E31 -> P | BK1: =E32 -> A | BM1: =E33 -> A | BO1: =E34 -> A | BQ1: =E35 -> A | BS1: =E36 -> A | BU1: =E37 -> A | BW1: =E38 -> A | BY1: =E39 -> A | CA1: =E40 -> A | CC1: =E41 -> A | CE1: =E42 -> P
D2: Tantièmes | F2: Pouvoir à | G2: =C4 -> 250 | I2: =C5 -> 434 | K2: =C6 -> 7 | M2: =C7 -> 406 | O2: =C8 -> 321 | Q2: =C9 -> 323 | S2: =C10 -> 43 | U2: =C11 -> 285 | W2: =C12 -> 249 | Y2: =C13 -> 281 | AA2: =C14 -> 633 | AC2: =C15 -> 444 | AE2: =C16 -> 7 | AG2: =C17 -> 353 | AI2: =C18 -> 36 | AK2: =C19 -> 218 | AM2: =C20 -> 306 | AO2: =C21 -> 245 | AQ2: =C22 -> 202 | AS2: =C23 -> 230 | AU2: =C24 -> 187 | AW2: =C25 -> 214 | AY2: =C26 -> 337 | BA2: =C27 -> 340 | BC2: =C28 -> 265 | BE2: =C29 -> 264 | BG2: =C30 -> 201 | BI2: =C31 -> 379 | BK2: =C32 -> 265 | BM2: =C33 -> 51 | BO2: =C34 -> 317 | BQ2: =C35 -> 265 | BS2: =C36 -> 268 | BU2: =C37 -> 210 | BW2: =C38 -> 301 | BY2: =C39 -> 245 | CA2: =C40 -> 23 | CC2: =C41 -> 209 | CE2: =C42 -> 308
D3: =COUNT(C4:C42)&" Noms" -> 39 Noms | E3: Statut | G3: =D4 -> Azemard | I3: =D5 -> Barthes | K3: =D6 -> Berthezene | M3: =D7 -> Boituzat | O3: =D8 -> Crédit Agric. | Q3: =D9 -> Carayol | S3: =D10 -> Catteau | U3: =D11 -> Decarne | W3: =D12 -> Desbordes | Y3: =D13 -> Diconne | AA3: =D14 -> DKS | AC3: =D15 -> Dugied | AE3: =D16 -> Fadda | AG3: =D17 -> Fraval | AI3: =D18 -> Gallard Justeau | AK3: =D19 -> Gerbaud | AM3: =D20 -> Hamelin | AO3: =D21 -> Hugo | AQ3: =D22 -> Leveau | AS3: =D23 -> Mandrile | AU3: =D24 -> Martinez | AW3: =D25 -> Megie | AY3: =D26 -> Morana F. | BA3: =D27 -> Morana AM | BC3: =D28 -> Morana L | BE3: =D29 -> Morana P | BG3: =D30 -> Optimo SCI | BI3: =D31 -> Ortega J. | BK3: =D32 -> Ortega S. | BM3: =D33 -> Piochot | BO3: =D34 -> Pouillot | BQ3: =D35 -> Ramirez | BS3: =D36 -> Segura Mari | BU3: =D37 -> Simoncini | BW3: =D38 -> Vautravers | BY3: =D39 -> Ventajou | CA3: =D40 -> Vernet | CC3: =D41 -> Villard Toddi | CE3: =D42 -> Vivona
A4: =IF(G4<>C4,"QQQ","") -> QQQ | C4: =Liste!E3 -> 250 | D4: =Liste!D3 -> Azemard | E4: A | G4: =IF($E4="P",$C4,"") ->  | I4: =IF(AND(E4="M",EXACT(F4,I$52)=TRUE),"X","") ->  | J4: =IF(I4="X",$C4,"") ->  | K4: =IF(AND($E4="M",EXACT($F4,K$52)=TRUE),"X","") ->  | L4: =IF(K4="X",$C4,"") ->  | M4: =IF(AND($E4="M",EXACT($F4,M$52)=TRUE),"X","") ->  | N4: =IF(M4="X",$C4,"") ->  | O4: =IF(AND($E4="M",EXACT($F4,O$52)=TRUE),"X","") ->  | P4: =IF(O4="X",$C4,"") ->  | Q4: =IF(AND($E4="M",EXACT($F4,Q$52)=TRUE),"X","") ->  | CC4: =IF(AND($E4="M",EXACT($F4,CC$52)=TRUE),"X","") ->  | CF4: =IF(CE4="X",$C4,"") -> 
C5: =Liste!E4 -> 434 | D5: =Liste!D4 -> Barthes | E5: A | G5: =IF(AND(E5="M",EXACT(F5,G$52)=TRUE),"X","") ->  | I5: =IF($E5="P",$C5,"") ->  | K5: =IF(AND($E5="M",EXACT($F5,K$52)=TRUE),"X","") ->  | L5: =IF(K5="X",$C5,"") ->  | M5: =IF(AND($E5="M",EXACT($F5,M$52)=TRUE),"X","") ->  | N5: =IF(M5="X",$C5,"") ->  | O5: =IF(AND($E5="M",EXACT($F5,O$52)=TRUE),"X","") ->  | P5: =IF(O5="X",$C5,"") ->  | T5: =IF(S5="X",$C5,"") ->  | V5: =IF(U5="X",$C5,"") ->  | X5: =IF(W5="X",$C5,"") ->  | AB5: =IF(AA5="X",$C5,"") ->  | AD5: =IF(AC5="X",$C5,"") ->  | AF5: =IF(AE5="X",$C5,"") ->  | AH5: =IF(AG5="X",$C5,"") ->  | AJ5: =IF(AI5="X",$C5,"") ->  | AL5: =IF(AK5="X",$C5,"") ->  | AN5: =IF(AM5="X",$C5,"") ->  | AP5: =IF(AO5="X",$C5,"") ->  | AR5: =IF(AQ5="X",$C5,"") ->  | AS5: =IF(AND($E5="M",EXACT($F5,AS$52)=TRUE),"X","") ->  | AT5: =IF(AS5="X",$C5,"") ->  | AU5: =IF(AND($E5="M",EXACT($F5,AU$52)=TRUE),"X","") ->  | AV5: =IF(AU5="X",$C5,"") ->  | AW5: =IF(AND($E5="M",EXACT($F5,AW$52)=TRUE),"X","") ->  | AX5: =IF(AW5="X",$C5,"") ->  | AY5: =IF(AND($E5="M",EXACT($F5,AY$52)=TRUE),"X","") ->  | AZ5: =IF(AY5="X",$C5,"") ->  | BA5: =IF(AND($E5="M",EXACT($F5,BA$52)=TRUE),"X","") ->  | BB5: =IF(BA5="X",$C5,"") ->  | BC5: =IF(AND($E5="M",EXACT($F5,BC$52)=TRUE),"X","") ->  | BD5: =IF(BC5="X",$C5,"") ->  | BE5: =IF(AND($E5="M",EXACT($F5,BE$52)=TRUE),"X","") ->  | BF5: =IF(BE5="X",$C5,"") ->  | BG5: =IF(AND($E5="M",EXACT($F5,BG$52)=TRUE),"X","") ->  | BH5: =IF(BG5="X",$C5,"") ->  | BI5: =IF(AND($E5="M",EXACT($F5,BI$52)=TRUE),"X","") ->  | BJ5: =IF(BI5="X",$C5,"") ->  | BK5: =IF(AND($E5="M",EXACT($F5,BK$52)=TRUE),"X","") ->  | BL5: =IF(BK5="X",$C5,"") ->  | BM5: =IF(AND($E5="M",EXACT($F5,BM$52)=TRUE),"X","") ->  | BN5: =IF(BM5="X",$C5,"") ->  | BO5: =IF(AND($E5="M",EXACT($F5,BO$52)=TRUE),"X","") ->  | BP5: =IF(BO5="X",$C5,"") ->  | BQ5: =IF(AND($E5="M",EXACT($F5,BQ$52)=TRUE),"X","") ->  | BR5: =IF(BQ5="X",$C5,"") ->  | BS5: =IF(AND($E5="M",EXACT($F5,BS$52)=TRUE),"X","") ->  | BT5: =IF(BS5="X",$C5,"") ->  | BU5: =IF(AND($E5="M",EXACT($F5,BU$52)=TRUE),"X","") ->  | BV5: =IF(BU5="X",$C5,"") ->  | BW5: =IF(AND($E5="M",EXACT($F5,BW$52)=TRUE),"X","") ->  | BX5: =IF(BW5="X",$C5,"") ->  | BY5: =IF(AND($E5="M",EXACT($F5,BY$52)=TRUE),"X","") ->  | BZ5: =IF(BY5="X",$C5,"") ->  | CA5: =IF(AND($E5="M",EXACT($F5,CA$52)=TRUE),"X","") ->  | CB5: =IF(CA5="X",$C5,"") ->  | CD5: =IF(CC5="X",$C5,"") ->  | CF5: =IF(CE5="X",$C5,"") -> 
C6: =Liste!E5 -> 7 | D6: =Liste!D5 -> Berthezene | E6: A | G6: =IF(AND(E6="M",EXACT(F6,G$52)=TRUE),"X","") ->  | I6: =IF(AND(E6="M",EXACT(F6,I$52)=TRUE),"X","") ->  | K6: =IF($E6="P",$C6,"") ->  | N6: =IF(M6="X",$C6,"") ->  | P6: =IF(O6="X",$C6,"") ->  | T6: =IF(S6="X",$C6,"") ->  | V6: =IF(U6="X",$C6,"") ->  | X6: =IF(W6="X",$C6,"") ->  | AB6: =IF(AA6="X",$C6,"") ->  | AD6: =IF(AC6="X",$C6,"") ->  | AF6: =IF(AE6="X",$C6,"") ->  | AH6: =IF(AG6="X",$C6,"") ->  | AJ6: =IF(AI6="X",$C6,"") ->  | AL6: =IF(AK6="X",$C6,"") ->  | AN6: =IF(AM6="X",$C6,"") ->  | AP6: =IF(AO6="X",$C6,"") ->  | AR6: =IF(AQ6="X",$C6,"") ->  | AT6: =IF(AS6="X",$C6,"") ->  | AV6: =IF(AU6="X",$C6,"") ->  | AX6: =IF(AW6="X",$C6,"") ->  | AZ6: =IF(AY6="X",$C6,"") ->  | BB6: =IF(BA6="X",$C6,"") ->  | BD6: =IF(BC6="X",$C6,"") ->  | BF6: =IF(BE6="X",$C6,"") ->  | BH6: =IF(BG6="X",$C6,"") ->  | BJ6: =IF(BI6="X",$C6,"") ->  | BL6: =IF(BK6="X",$C6,"") ->  | BN6: =IF(BM6="X",$C6,"") ->  | BP6: =IF(BO6="X",$C6,"") ->  | BR6: =IF(BQ6="X",$C6,"") ->  | BT6: =IF(BS6="X",$C6,"") ->  | BV6: =IF(BU6="X",$C6,"") ->  | BX6: =IF(BW6="X",$C6,"") ->  | BZ6: =IF(BY6="X",$C6,"") ->  | CB6: =IF(CA6="X",$C6,"") ->  | CD6: =IF(CC6="X",$C6,"") ->  | CF6: =IF(CE6="X",$C6,"") -> 
C7: =Liste!E6 -> 406 | D7: =Liste!D6 -> Boituzat | E7: P | K7: =IF(AND($E7="M",EXACT($F7,K$52)=TRUE),"X","") ->  | L7: =IF(K7="X",$C7,"") ->  | M7: =IF($E7="P",$C7,"") -> 406 | P7: =IF(O7="X",$C7,"") ->  | T7: =IF(S7="X",$C7,"") ->  | V7: =IF(U7="X",$C7,"") ->  | X7: =IF(W7="X",$C7,"") ->  | AB7: =IF(AA7="X",$C7,"") ->  | AD7: =IF(AC7="X",$C7,"") ->  | AF7: =IF(AE7="X",$C7,"") ->  | AH7: =IF(AG7="X",$C7,"") ->  | AJ7: =IF(AI7="X",$C7,"") ->  | AL7: =IF(AK7="X",$C7,"") ->  | AN7: =IF(AM7="X",$C7,"") ->  | AP7: =IF(AO7="X",$C7,"") ->  | AR7: =IF(AQ7="X",$C7,"") ->  | AT7: =IF(AS7="X",$C7,"") ->  | AV7: =IF(AU7="X",$C7,"") ->  | AX7: =IF(AW7="X",$C7,"") ->  | AZ7: =IF(AY7="X",$C7,"") ->  | BB7: =IF(BA7="X",$C7,"") ->  | BD7: =IF(BC7="X",$C7,"") ->  | BF7: =IF(BE7="X",$C7,"") ->  | BH7: =IF(BG7="X",$C7,"") ->  | BJ7: =IF(BI7="X",$C7,"") ->  | BL7: =IF(BK7="X",$C7,"") ->  | BN7: =IF(BM7="X",$C7,"") ->  | BP7: =IF(BO7="X",$C7,"") ->  | BR7: =IF(BQ7="X",$C7,"") ->  | BT7: =IF(BS7="X",$C7,"") ->  | BV7: =IF(BU7="X",$C7,"") ->  | BX7: =IF(BW7="X",$C7,"") ->  | BZ7: =IF(BY7="X",$C7,"") ->  | CB7: =IF(CA7="X",$C7,"") ->  | CD7: =IF(CC7="X",$C7,"") ->  | CF7: =IF(CE7="X",$C7,"") -> 
C8: =Liste!E7 -> 321 | D8: =Liste!D7 -> Crédit Agric. | E8: A | N8: =IF(M8="X",$C8,"") ->  | O8: =IF($E8="P",$C8,"") ->  | R8: =IF(Q8="X",$C8,"") ->  | T8: =IF(S8="X",$C8,"") ->  | V8: =IF(U8="X",$C8,"") ->  | X8: =IF(W8="X",$C8,"") ->  | AB8: =IF(AA8="X",$C8,"") ->  | AD8: =IF(AC8="X",$C8,"") ->  | AF8: =IF(AE8="X",$C8,"") ->  | AH8: =IF(AG8="X",$C8,"") ->  | AJ8: =IF(AI8="X",$C8,"") ->  | AL8: =IF(AK8="X",$C8,"") ->  | AN8: =IF(AM8="X",$C8,"") ->  | AP8: =IF(AO8="X",$C8,"") ->  | AQ8: =IF(AND($E8="M",EXACT($F8,AQ$52)=TRUE),"X","") ->  | AR8: =IF(AQ8="X",$C8,"") ->  | AT8: =IF(AS8="X",$C8,"") ->  | AV8: =IF(AU8="X",$C8,"") ->  | AX8: =IF(AW8="X",$C8,"") ->  | AZ8: =IF(AY8="X",$C8,"") ->  | BB8: =IF(BA8="X",$C8,"") ->  | BD8: =IF(BC8="X",$C8,"") ->  | BF8: =IF(BE8="X",$C8,"") ->  | BH8: =IF(BG8="X",$C8,"") ->  | BJ8: =IF(BI8="X",$C8,"") ->  | BL8: =IF(BK8="X",$C8,"") ->  | BN8: =IF(BM8="X",$C8,"") ->  | BP8: =IF(BO8="X",$C8,"") ->  | BR8: =IF(BQ8="X",$C8,"") ->  | BT8: =IF(BS8="X",$C8,"") ->  | BV8: =IF(BU8="X",$C8,"") ->  | BX8: =IF(BW8="X",$C8,"") ->  | BZ8: =IF(BY8="X",$C8,"") ->  | CB8: =IF(CA8="X",$C8,"") ->  | CD8: =IF(CC8="X",$C8,"") ->  | CF8: =IF(CE8="X",$C8,"") -> 
C9: =Liste!E8 -> 323 | D9: =Liste!D8 -> Carayol | E9: A | L9: =IF(K9="X",$C9,"") ->  | N9: =IF(M9="X",$C9,"") ->  | P9: =IF(O9="X",$C9,"") ->  | Q9: =IF($E9="P",$C9,"") ->  | T9: =IF(S9="X",$C9,"") ->  | V9: =IF(U9="X",$C9,"") ->  | X9: =IF(W9="X",$C9,"") ->  | AB9: =IF(AA9="X",$C9,"") ->  | AD9: =IF(AC9="X",$C9,"") ->  | AF9: =IF(AE9="X",$C9,"") ->  | AH9: =IF(AG9="X",$C9,"") ->  | AJ9: =IF(AI9="X",$C9,"") ->  | AL9: =IF(AK9="X",$C9,"") ->  | AN9: =IF(AM9="X",$C9,"") ->  | AP9: =IF(AO9="X",$C9,"") ->  | AR9: =IF(AQ9="X",$C9,"") ->  | AT9: =IF(AS9="X",$C9,"") ->  | AV9: =IF(AU9="X",$C9,"") ->  | AX9: =IF(AW9="X",$C9,"") ->  | AZ9: =IF(AY9="X",$C9,"") ->  | BB9: =IF(BA9="X",$C9,"") ->  | BD9: =IF(BC9="X",$C9,"") ->  | BF9: =IF(BE9="X",$C9,"") ->  | BH9: =IF(BG9="X",$C9,"") ->  | BJ9: =IF(BI9="X",$C9,"") ->  | BL9: =IF(BK9="X",$C9,"") ->  | BN9: =IF(BM9="X",$C9,"") ->  | BP9: =IF(BO9="X",$C9,"") ->  | BR9: =IF(BQ9="X",$C9,"") ->  | BT9: =IF(BS9="X",$C9,"") ->  | BV9: =IF(BU9="X",$C9,"") ->  | BX9: =IF(BW9="X",$C9,"") ->  | BZ9: =IF(BY9="X",$C9,"") ->  | CB9: =IF(CA9="X",$C9,"") ->  | CD9: =IF(CC9="X",$C9,"") ->  | CF9: =IF(CE9="X",$C9,"") -> 
C10: =Liste!E9 -> 43 | D10: =Liste!D9 -> Catteau | E10: A | L10: =IF(K10="X",$C10,"") ->  | N10: =IF(M10="X",$C10,"") ->  | P10: =IF(O10="X",$C10,"") ->  | S10: =IF($E10="P",$C10,"") ->  | V10: =IF(U10="X",$C10,"") ->  | X10: =IF(W10="X",$C10,"") ->  | AB10: =IF(AA10="X",$C10,"") ->  | AD10: =IF(AC10="X",$C10,"") ->  | AF10: =IF(AE10="X",$C10,"") ->  | AH10: =IF(AG10="X",$C10,"") ->  | AJ10: =IF(AI10="X",$C10,"") ->  | AL10: =IF(AK10="X",$C10,"") ->  | AN10: =IF(AM10="X",$C10,"") ->  | AP10: =IF(AO10="X",$C10,"") ->  | AR10: =IF(AQ10="X",$C10,"") ->  | AT10: =IF(AS10="X",$C10,"") ->  | AV10: =IF(AU10="X",$C10,"") ->  | AX10: =IF(AW10="X",$C10,"") ->  | AZ10: =IF(AY10="X",$C10,"") ->  | BB10: =IF(BA10="X",$C10,"") ->  | BD10: =IF(BC10="X",$C10,"") ->  | BF10: =IF(BE10="X",$C10,"") ->  | BH10: =IF(BG10="X",$C10,"") ->  | BJ10: =IF(BI10="X",$C10,"") ->  | BL10: =IF(BK10="X",$C10,"") ->  | BN10: =IF(BM10="X",$C10,"") ->  | BP10: =IF(BO10="X",$C10,"") ->  | BR10: =IF(BQ10="X",$C10,"") ->  | BT10: =IF(BS10="X",$C10,"") ->  | BV10: =IF(BU10="X",$C10,"") ->  | BX10: =IF(BW10="X",$C10,"") ->  | BZ10: =IF(BY10="X",$C10,"") ->  | CB10: =IF(CA10="X",$C10,"") ->  | CD10: =IF(CC10="X",$C10,"") ->  | CF10: =IF(CE10="X",$C10,"") -> 
C11: =Liste!E10 -> 285 | D11: =Liste!D10 -> Decarne | E11: A | L11: =IF(K11="X",$C11,"") ->  | N11: =IF(M11="X",$C11,"") ->  | P11: =IF(O11="X",$C11,"") ->  | T11: =IF(S11="X",$C11,"") ->  | U11: =IF($E11="P",$C11,"") ->  | X11: =IF(W11="X",$C11,"") ->  | AB11: =IF(AA11="X",$C11,"") ->  | AD11: =IF(AC11="X",$C11,"") ->  | AF11: =IF(AE11="X",$C11,"") ->  | AH11: =IF(AG11="X",$C11,"") ->  | AJ11: =IF(AI11="X",$C11,"") ->  | AL11: =IF(AK11="X",$C11,"") ->  | AN11: =IF(AM11="X",$C11,"") ->  | AP11: =IF(AO11="X",$C11,"") ->  | AR11: =IF(AQ11="X",$C11,"") ->  | AT11: =IF(AS11="X",$C11,"") ->  | AV11: =IF(AU11="X",$C11,"") ->  | AX11: =IF(AW11="X",$C11,"") ->  | AZ11: =IF(AY11="X",$C11,"") ->  | BB11: =IF(BA11="X",$C11,"") ->  | BD11: =IF(BC11="X",$C11,"") ->  | BF11: =IF(BE11="X",$C11,"") ->  | BH11: =IF(BG11="X",$C11,"") ->  | BJ11: =IF(BI11="X",$C11,"") ->  | BL11: =IF(BK11="X",$C11,"") ->  | BN11: =IF(BM11="X",$C11,"") ->  | BP11: =IF(BO11="X",$C11,"") ->  | BR11: =IF(BQ11="X",$C11,"") ->  | BT11: =IF(BS11="X",$C11,"") ->  | BV11: =IF(BU11="X",$C11,"") ->  | BX11: =IF(BW11="X",$C11,"") ->  | BZ11: =IF(BY11="X",$C11,"") ->  | CB11: =IF(CA11="X",$C11,"") ->  | CD11: =IF(CC11="X",$C11,"") ->  | CF11: =IF(CE11="X",$C11,"") -> 
C12: =Liste!E11 -> 249 | D12: =Liste!D11 -> Desbordes | E12: A | L12: =IF(K12="X",$C12,"") ->  | N12: =IF(M12="X",$C12,"") ->  | P12: =IF(O12="X",$C12,"") ->  | T12: =IF(S12="X",$C12,"") ->  | V12: =IF(U12="X",$C12,"") ->  | W12: =IF($E12="P",$C12,"") -> 
C13: =Liste!E12 -> 281 | D13: =Liste!D12 -> Diconne | E13: A | L13: =IF(K13="X",$C13,"") ->  | N13: =IF(M13="X",$C13,"") ->  | P13: =IF(O13="X",$C13,"") ->  | T13: =IF(S13="X",$C13,"") ->  | V13: =IF(U13="X",$C13,"") ->  | X13: =IF(W13="X",$C13,"") ->  | Y13: =IF($E13="P",$C13,"") ->  | AB13: =IF(AA13="X",$C13,"") ->  | AD13: =IF(AC13="X",$C13,"") ->  | AF13: =IF(AE13="X",$C13,"") ->  | AH13: =IF(AG13="X",$C13,"") ->  | AJ13: =IF(AI13="X",$C13,"") ->  | AL13: =IF(AK13="X",$C13,"") ->  | AN13: =IF(AM13="X",$C13,"") ->  | AP13: =IF(AO13="X",$C13,"") ->  | AR13: =IF(AQ13="X",$C13,"") ->  | AT13: =IF(AS13="X",$C13,"") ->  | AV13: =IF(AU13="X",$C13,"") ->  | AX13: =IF(AW13="X",$C13,"") ->  | AZ13: =IF(AY13="X",$C13,"") ->  | BB13: =IF(BA13="X",$C13,"") ->  | BD13: =IF(BC13="X",$C13,"") ->  | BF13: =IF(BE13="X",$C13,"") ->  | BH13: =IF(BG13="X",$C13,"") ->  | BJ13: =IF(BI13="X",$C13,"") ->  | BL13: =IF(BK13="X",$C13,"") ->  | BN13: =IF(BM13="X",$C13,"") ->  | BP13: =IF(BO13="X",$C13,"") ->  | BR13: =IF(BQ13="X",$C13,"") ->  | BT13: =IF(BS13="X",$C13,"") ->  | BV13: =IF(BU13="X",$C13,"") ->  | BX13: =IF(BW13="X",$C13,"") ->  | BZ13: =IF(BY13="X",$C13,"") ->  | CB13: =IF(CA13="X",$C13,"") ->  | CD13: =IF(CC13="X",$C13,"") ->  | CF13: =IF(CE13="X",$C13,"") -> 
C14: =Liste!E13 -> 633 | D14: =Liste!D13 -> DKS | E14: A | L14: =IF(K14="X",$C14,"") ->  | N14: =IF(M14="X",$C14,"") ->  | P14: =IF(O14="X",$C14,"") ->  | T14: =IF(S14="X",$C14,"") ->  | V14: =IF(U14="X",$C14,"") ->  | X14: =IF(W14="X",$C14,"") ->  | AA14: =IF($E14="P",$C14,"") ->  | AD14: =IF(AC14="X",$C14,"") ->  | AF14: =IF(AE14="X",$C14,"") ->  | AH14: =IF(AG14="X",$C14,"") ->  | AJ14: =IF(AI14="X",$C14,"") ->  | AL14: =IF(AK14="X",$C14,"") ->  | AN14: =IF(AM14="X",$C14,"") ->  | AP14: =IF(AO14="X",$C14,"") ->  | AR14: =IF(AQ14="X",$C14,"") ->  | AT14: =IF(AS14="X",$C14,"") ->  | AV14: =IF(AU14="X",$C14,"") ->  | AX14: =IF(AW14="X",$C14,"") ->  | AZ14: =IF(AY14="X",$C14,"") ->  | BB14: =IF(BA14="X",$C14,"") ->  | BD14: =IF(BC14="X",$C14,"") ->  | BF14: =IF(BE14="X",$C14,"") ->  | BH14: =IF(BG14="X",$C14,"") ->  | BJ14: =IF(BI14="X",$C14,"") ->  | BL14: =IF(BK14="X",$C14,"") ->  | BN14: =IF(BM14="X",$C14,"") ->  | BP14: =IF(BO14="X",$C14,"") ->  | BR14: =IF(BQ14="X",$C14,"") ->  | BT14: =IF(BS14="X",$C14,"") ->  | BV14: =IF(BU14="X",$C14,"") ->  | BX14: =IF(BW14="X",$C14,"") ->  | BZ14: =IF(BY14="X",$C14,"") ->  | CB14: =IF(CA14="X",$C14,"") ->  | CD14: =IF(CC14="X",$C14,"") ->  | CF14: =IF(CE14="X",$C14,"") -> 
C15: =Liste!E14 -> 444 | D15: =Liste!D14 -> Dugied | E15: P | L15: =IF(K15="X",$C15,"") ->  | N15: =IF(M15="X",$C15,"") ->  | P15: =IF(O15="X",$C15,"") ->  | T15: =IF(S15="X",$C15,"") ->  | V15: =IF(U15="X",$C15,"") ->  | X15: =IF(W15="X",$C15,"") ->  | AB15: =IF(AA15="X",$C15,"") ->  | AC15: =IF($E15="P",$C15,"") -> 444 | AF15: =IF(AE15="X",$C15,"") ->  | AH15: =IF(AG15="X",$C15,"") ->  | AJ15: =IF(AI15="X",$C15,"") ->  | AL15: =IF(AK15="X",$C15,"") ->  | AN15: =IF(AM15="X",$C15,"") ->  | AP15: =IF(AO15="X",$C15,"") ->  | AR15: =IF(AQ15="X",$C15,"") ->  | AT15: =IF(AS15="X",$C15,"") ->  | AV15: =IF(AU15="X",$C15,"") ->  | AX15: =IF(AW15="X",$C15,"") ->  | AZ15: =IF(AY15="X",$C15,"") ->  | BB15: =IF(BA15="X",$C15,"") ->  | BD15: =IF(BC15="X",$C15,"") ->  | BF15: =IF(BE15="X",$C15,"") ->  | BH15: =IF(BG15="X",$C15,"") ->  | BJ15: =IF(BI15="X",$C15,"") ->  | BL15: =IF(BK15="X",$C15,"") ->  | BN15: =IF(BM15="X",$C15,"") ->  | BP15: =IF(BO15="X",$C15,"") ->  | BR15: =IF(BQ15="X",$C15,"") ->  | BT15: =IF(BS15="X",$C15,"") ->  | BV15: =IF(BU15="X",$C15,"") ->  | BX15: =IF(BW15="X",$C15,"") ->  | BZ15: =IF(BY15="X",$C15,"") ->  | CB15: =IF(CA15="X",$C15,"") ->  | CD15: =IF(CC15="X",$C15,"") ->  | CF15: =IF(CE15="X",$C15,"") -> 
C16: =Liste!E15 -> 7 | D16: =Liste!D15 -> Fadda | E16: A | L16: =IF(K16="X",$C16,"") ->  | N16: =IF(M16="X",$C16,"") ->  | P16: =IF(O16="X",$C16,"") ->  | T16: =IF(S16="X",$C16,"") ->  | V16: =IF(U16="X",$C16,"") ->  | X16: =IF(W16="X",$C16,"") ->  | AB16: =IF(AA16="X",$C16,"") ->  | AD16: =IF(AC16="X",$C16,"") ->  | AE16: =IF($E16="P",$C16,"") ->  | AH16: =IF(AG16="X",$C16,"") ->  | AJ16: =IF(AI16="X",$C16,"") ->  | AL16: =IF(AK16="X",$C16,"") ->  | AN16: =IF(AM16="X",$C16,"") ->  | AP16: =IF(AO16="X",$C16,"") ->  | AR16: =IF(AQ16="X",$C16,"") ->  | AT16: =IF(AS16="X",$C16,"") ->  | AV16: =IF(AU16="X",$C16,"") ->  | AX16: =IF(AW16="X",$C16,"") ->  | AZ16: =IF(AY16="X",$C16,"") ->  | BB16: =IF(BA16="X",$C16,"") ->  | BD16: =IF(BC16="X",$C16,"") ->  | BF16: =IF(BE16="X",$C16,"") ->  | BH16: =IF(BG16="X",$C16,"") ->  | BJ16: =IF(BI16="X",$C16,"") ->  | BL16: =IF(BK16="X",$C16,"") ->  | BN16: =IF(BM16="X",$C16,"") ->  | BP16: =IF(BO16="X",$C16,"") ->  | BR16: =IF(BQ16="X",$C16,"") ->  | BT16: =IF(BS16="X",$C16,"") ->  | BV16: =IF(BU16="X",$C16,"") ->  | BX16: =IF(BW16="X",$C16,"") ->  | BZ16: =IF(BY16="X",$C16,"") ->  | CB16: =IF(CA16="X",$C16,"") ->  | CD16: =IF(CC16="X",$C16,"") ->  | CF16: =IF(CE16="X",$C16,"") -> 
C17: =Liste!E16 -> 353 | D17: =Liste!D16 -> Fraval | E17: P | L17: =IF(K17="X",$C17,"") ->  | N17: =IF(M17="X",$C17,"") ->  | P17: =IF(O17="X",$C17,"") ->  | T17: =IF(S17="X",$C17,"") ->  | V17: =IF(U17="X",$C17,"") ->  | X17: =IF(W17="X",$C17,"") ->  | AB17: =IF(AA17="X",$C17,"") ->  | AD17: =IF(AC17="X",$C17,"") ->  | AF17: =IF(AE17="X",$C17,"") ->  | AG17: =IF($E17="P",$C17,"") -> 353 | AJ17: =IF(AI17="X",$C17,"") ->  | AL17: =IF(AK17="X",$C17,"") ->  | AN17: =IF(AM17="X",$C17,"") ->  | AP17: =IF(AO17="X",$C17,"") ->  | AR17: =IF(AQ17="X",$C17,"") ->  | AT17: =IF(AS17="X",$C17,"") ->  | AV17: =IF(AU17="X",$C17,"") ->  | AX17: =IF(AW17="X",$C17,"") ->  | AZ17: =IF(AY17="X",$C17,"") ->  | BB17: =IF(BA17="X",$C17,"") ->  | BD17: =IF(BC17="X",$C17,"") ->  | BF17: =IF(BE17="X",$C17,"") ->  | BH17: =IF(BG17="X",$C17,"") ->  | BJ17: =IF(BI17="X",$C17,"") ->  | BL17: =IF(BK17="X",$C17,"") ->  | BN17: =IF(BM17="X",$C17,"") ->  | BP17: =IF(BO17="X",$C17,"") ->  | BR17: =IF(BQ17="X",$C17,"") ->  | BT17: =IF(BS17="X",$C17,"") ->  | BV17: =IF(BU17="X",$C17,"") ->  | BX17: =IF(BW17="X",$C17,"") ->  | BZ17: =IF(BY17="X",$C17,"") ->  | CB17: =IF(CA17="X",$C17,"") ->  | CD17: =IF(CC17="X",$C17,"") ->  | CF17: =IF(CE17="X",$C17,"") -> 
C18: =Liste!E17 -> 36 | D18: =Liste!D17 -> Gallard Justeau | E18: A | L18: =IF(K18="X",$C18,"") ->  | N18: =IF(M18="X",$C18,"") ->  | P18: =IF(O18="X",$C18,"") ->  | T18: =IF(S18="X",$C18,"") ->  | V18: =IF(U18="X",$C18,"") ->  | X18: =IF(W18="X",$C18,"") ->  | AB18: =IF(AA18="X",$C18,"") ->  | AD18: =IF(AC18="X",$C18,"") ->  | AF18: =IF(AE18="X",$C18,"") ->  | AH18: =IF(AG18="X",$C18,"") ->  | AI18: =IF($E18="P",$C18,"") ->  | AL18: =IF(AK18="X",$C18,"") ->  | AN18: =IF(AM18="X",$C18,"") ->  | AP18: =IF(AO18="X",$C18,"") ->  | AR18: =IF(AQ18="X",$C18,"") ->  | AT18: =IF(AS18="X",$C18,"") ->  | AV18: =IF(AU18="X",$C18,"") ->  | AX18: =IF(AW18="X",$C18,"") ->  | AZ18: =IF(AY18="X",$C18,"") ->  | BB18: =IF(BA18="X",$C18,"") ->  | BD18: =IF(BC18="X",$C18,"") ->  | BF18: =IF(BE18="X",$C18,"") ->  | BH18: =IF(BG18="X",$C18,"") ->  | BJ18: =IF(BI18="X",$C18,"") ->  | BL18: =IF(BK18="X",$C18,"") ->  | BN18: =IF(BM18="X",$C18,"") ->  | BP18: =IF(BO18="X",$C18,"") ->  | BR18: =IF(BQ18="X",$C18,"") ->  | BT18: =IF(BS18="X",$C18,"") ->  | BV18: =IF(BU18="X",$C18,"") ->  | BX18: =IF(BW18="X",$C18,"") ->  | BZ18: =IF(BY18="X",$C18,"") ->  | CB18: =IF(CA18="X",$C18,"") ->  | CD18: =IF(CC18="X",$C18,"") ->  | CF18: =IF(CE18="X",$C18,"") -> 
C19: =Liste!E18 -> 218 | D19: =Liste!D18 -> Gerbaud | E19: A | L19: =IF(K19="X",$C19,"") ->  | N19: =IF(M19="X",$C19,"") ->  | P19: =IF(O19="X",$C19,"") ->  | T19: =IF(S19="X",$C19,"") ->  | V19: =IF(U19="X",$C19,"") ->  | X19: =IF(W19="X",$C19,"") ->  | AB19: =IF(AA19="X",$C19,"") ->  | AD19: =IF(AC19="X",$C19,"") ->  | AF19: =IF(AE19="X",$C19,"") ->  | AH19: =IF(AG19="X",$C19,"") ->  | AJ19: =IF(AI19="X",$C19,"") ->  | AK19: =IF($E19="P",$C19,"") ->  | AN19: =IF(AM19="X",$C19,"") ->  | AP19: =IF(AO19="X",$C19,"") ->  | AR19: =IF(AQ19="X",$C19,"") ->  | AT19: =IF(AS19="X",$C19,"") ->  | AV19: =IF(AU19="X",$C19,"") ->  | AX19: =IF(AW19="X",$C19,"") ->  | AZ19: =IF(AY19="X",$C19,"") ->  | BB19: =IF(BA19="X",$C19,"") ->  | BD19: =IF(BC19="X",$C19,"") ->  | BF19: =IF(BE19="X",$C19,"") ->  | BH19: =IF(BG19="X",$C19,"") ->  | BJ19: =IF(BI19="X",$C19,"") ->  | BL19: =IF(BK19="X",$C19,"") ->  | BN19: =IF(BM19="X",$C19,"") ->  | BP19: =IF(BO19="X",$C19,"") ->  | BR19: =IF(BQ19="X",$C19,"") ->  | BT19: =IF(BS19="X",$C19,"") ->  | BV19: =IF(BU19="X",$C19,"") ->  | BX19: =IF(BW19="X",$C19,"") ->  | BZ19: =IF(BY19="X",$C19,"") ->  | CB19: =IF(CA19="X",$C19,"") ->  | CD19: =IF(CC19="X",$C19,"") ->  | CF19: =IF(CE19="X",$C19,"") -> 
C20: =Liste!E19 -> 306 | D20: =Liste!D19 -> Hamelin | E20: M | F20: Martinez | L20: =IF(K20="X",$C20,"") ->  | N20: =IF(M20="X",$C20,"") ->  | P20: =IF(O20="X",$C20,"") ->  | Q20: =IF(AND($E20="M",EXACT($F20,Q$52)=TRUE),"X","") ->  | S20: =IF(AND($E20="M",EXACT($F20,S$52)=TRUE),"X","") ->  | T20: =IF(S20="X",$C20,"") ->  | U20: =IF(AND($E20="M",EXACT($F20,U$52)=TRUE),"X","") ->  | V20: =IF(U20="X",$C20,"") ->  | W20: =IF(AND($E20="M",EXACT($F20,W$52)=TRUE),"X","") ->  | X20: =IF(W20="X",$C20,"") ->  | Y20: =IF(AND($E20="M",EXACT($F20,Y$52)=TRUE),"X","") ->  | AA20: =IF(AND($E20="M",EXACT($F20,AA$52)=TRUE),"X","") ->  | AB20: =IF(AA20="X",$C20,"") ->  | AC20: =IF(AND($E20="M",EXACT($F20,AC$52)=TRUE),"X","") ->  | AD20: =IF(AC20="X",$C20,"") ->  | AE20: =IF(AND($E20="M",EXACT($F20,AE$52)=TRUE),"X","") ->  | AF20: =IF(AE20="X",$C20,"") ->  | AG20: =IF(AND($E20="M",EXACT($F20,AG$52)=TRUE),"X","") ->  | AH20: =IF(AG20="X",$C20,"") ->  | AI20: =IF(AND($E20="M",EXACT($F20,AI$52)=TRUE),"X","") ->  | AJ20: =IF(AI20="X",$C20,"") ->  | AL20: =IF(AK20="X",$C20,"") ->  | AM20: =IF($E20="P",$C20,"") ->  | AP20: =IF(AO20="X",$C20,"") ->  | AR20: =IF(AQ20="X",$C20,"") ->  | AT20: =IF(AS20="X",$C20,"") ->  | AU20: X | AV20: =IF(AU20="X",$C20,"") -> 306 | AX20: =IF(AW20="X",$C20,"") ->  | AZ20: =IF(AY20="X",$C20,"") ->  | BB20: =IF(BA20="X",$C20,"") ->  | BD20: =IF(BC20="X",$C20,"") ->  | BF20: =IF(BE20="X",$C20,"") ->  | BH20: =IF(BG20="X",$C20,"") ->  | BJ20: =IF(BI20="X",$C20,"") ->  | BL20: =IF(BK20="X",$C20,"") ->  | BN20: =IF(BM20="X",$C20,"") ->  | BP20: =IF(BO20="X",$C20,"") ->  | BR20: =IF(BQ20="X",$C20,"") ->  | BT20: =IF(BS20="X",$C20,"") ->  | BV20: =IF(BU20="X",$C20,"") ->  | BX20: =IF(BW20="X",$C20,"") ->  | BZ20: =IF(BY20="X",$C20,"") ->  | CB20: =IF(CA20="X",$C20,"") ->  | CC20: =IF(AND($E20="M",EXACT($F20,CC$52)=TRUE),"X","") ->  | CD20: =IF(CC20="X",$C20,"") ->  | CE20: =IF(AND($E20="M",EXACT($F20,CE$52)=TRUE),"X","") ->  | CF20: =IF(CE20="X",$C20,"") -> 
C21: =Liste!E20 -> 245 | D21: =Liste!D20 -> Hugo | E21: A | L21: =IF(K21="X",$C21,"") ->  | N21: =IF(M21="X",$C21,"") ->  | P21: =IF(O21="X",$C21,"") ->  | T21: =IF(S21="X",$C21,"") ->  | V21: =IF(U21="X",$C21,"") ->  | X21: =IF(W21="X",$C21,"") ->  | AB21: =IF(AA21="X",$C21,"") ->  | AD21: =IF(AC21="X",$C21,"") ->  | AF21: =IF(AE21="X",$C21,"") ->  | AH21: =IF(AG21="X",$C21,"") ->  | AJ21: =IF(AI21="X",$C21,"") ->  | AK21: =IF(AND($E21="M",EXACT($F21,AK$52)=TRUE),"X","") ->  | AL21: =IF(AK21="X",$C21,"") ->  | AN21: =IF(AM21="X",$C21,"") ->  | AO21: =IF($E21="P",$C21,"") ->  | AR21: =IF(AQ21="X",$C21,"") ->  | AT21: =IF(AS21="X",$C21,"") ->  | AV21: =IF(AU21="X",$C21,"") ->  | AX21: =IF(AW21="X",$C21,"") ->  | AZ21: =IF(AY21="X",$C21,"") ->  | BB21: =IF(BA21="X",$C21,"") ->  | BD21: =IF(BC21="X",$C21,"") ->  | BF21: =IF(BE21="X",$C21,"") ->  | BH21: =IF(BG21="X",$C21,"") ->  | BJ21: =IF(BI21="X",$C21,"") ->  | BL21: =IF(BK21="X",$C21,"") ->  | BN21: =IF(BM21="X",$C21,"") ->  | BP21: =IF(BO21="X",$C21,"") ->  | BR21: =IF(BQ21="X",$C21,"") ->  | BT21: =IF(BS21="X",$C21,"") ->  | BV21: =IF(BU21="X",$C21,"") ->  | BX21: =IF(BW21="X",$C21,"") ->  | BZ21: =IF(BY21="X",$C21,"") ->  | CB21: =IF(CA21="X",$C21,"") ->  | CD21: =IF(CC21="X",$C21,"") ->  | CF21: =IF(CE21="X",$C21,"") -> 
C22: =Liste!E21 -> 202 | D22: =Liste!D21 -> Leveau | E22: A | L22: =IF(K22="X",$C22,"") ->  | N22: =IF(M22="X",$C22,"") ->  | P22: =IF(O22="X",$C22,"") ->  | T22: =IF(S22="X",$C22,"") ->  | V22: =IF(U22="X",$C22,"") ->  | X22: =IF(W22="X",$C22,"") ->  | AB22: =IF(AA22="X",$C22,"") ->  | AD22: =IF(AC22="X",$C22,"") ->  | AF22: =IF(AE22="X",$C22,"") ->  | AH22: =IF(AG22="X",$C22,"") ->  | AJ22: =IF(AI22="X",$C22,"") ->  | AL22: =IF(AK22="X",$C22,"") ->  | AM22: =IF(AND($E22="M",EXACT($F22,AM$52)=TRUE),"X","") ->  | AN22: =IF(AM22="X",$C22,"") ->  | AP22: =IF(AO22="X",$C22,"") ->  | AQ22: =IF($E22="P",$C22,"") ->  | AT22: =IF(AS22="X",$C22,"") ->  | AV22: =IF(AU22="X",$C22,"") ->  | AX22: =IF(AW22="X",$C22,"") ->  | AZ22: =IF(AY22="X",$C22,"") ->  | BB22: =IF(BA22="X",$C22,"") ->  | BD22: =IF(BC22="X",$C22,"") ->  | BF22: =IF(BE22="X",$C22,"") ->  | BH22: =IF(BG22="X",$C22,"") ->  | BJ22: =IF(BI22="X",$C22,"") ->  | BL22: =IF(BK22="X",$C22,"") ->  | BN22: =IF(BM22="X",$C22,"") ->  | BP22: =IF(BO22="X",$C22,"") ->  | BR22: =IF(BQ22="X",$C22,"") ->  | BT22: =IF(BS22="X",$C22,"") ->  | BV22: =IF(BU22="X",$C22,"") ->  | BX22: =IF(BW22="X",$C22,"") ->  | BZ22: =IF(BY22="X",$C22,"") ->  | CB22: =IF(CA22="X",$C22,"") ->  | CD22: =IF(CC22="X",$C22,"") ->  | CF22: =IF(CE22="X",$C22,"") -> 
C23: =Liste!E22 -> 230 | D23: =Liste!D22 -> Mandrile | E23: A | L23: =IF(K23="X",$C23,"") ->  | N23: =IF(M23="X",$C23,"") ->  | P23: =IF(O23="X",$C23,"") ->  | T23: =IF(S23="X",$C23,"") ->  | V23: =IF(U23="X",$C23,"") ->  | X23: =IF(W23="X",$C23,"") ->  | AB23: =IF(AA23="X",$C23,"") ->  | AD23: =IF(AC23="X",$C23,"") ->  | AF23: =IF(AE23="X",$C23,"") ->  | AH23: =IF(AG23="X",$C23,"") ->  | AJ23: =IF(AI23="X",$C23,"") ->  | AL23: =IF(AK23="X",$C23,"") ->  | AN23: =IF(AM23="X",$C23,"") ->  | AO23: =IF(AND($E23="M",EXACT($F23,AO$52)=TRUE),"X","") ->  | AP23: =IF(AO23="X",$C23,"") ->  | AQ23: =IF(AND($E23="M",EXACT($F23,AQ$52)=TRUE),"X","") ->  | AR23: =IF(AQ23="X",$C23,"") ->  | AS23: =IF($E23="P",$C23,"") ->  | AV23: =IF(AU23="X",$C23,"") ->  | AX23: =IF(AW23="X",$C23,"") ->  | AZ23: =IF(AY23="X",$C23,"") ->  | BB23: =IF(BA23="X",$C23,"") ->  | BD23: =IF(BC23="X",$C23,"") ->  | BF23: =IF(BE23="X",$C23,"") ->  | BH23: =IF(BG23="X",$C23,"") ->  | BJ23: =IF(BI23="X",$C23,"") ->  | BL23: =IF(BK23="X",$C23,"") ->  | BN23: =IF(BM23="X",$C23,"") ->  | BP23: =IF(BO23="X",$C23,"") ->  | BR23: =IF(BQ23="X",$C23,"") ->  | BT23: =IF(BS23="X",$C23,"") ->  | BV23: =IF(BU23="X",$C23,"") ->  | BX23: =IF(BW23="X",$C23,"") ->  | BZ23: =IF(BY23="X",$C23,"") ->  | CB23: =IF(CA23="X",$C23,"") ->  | CD23: =IF(CC23="X",$C23,"") ->  | CF23: =IF(CE23="X",$C23,"") -> 
C24: =Liste!E23 -> 187 | D24: =Liste!D23 -> Martinez | E24: P | L24: =IF(K24="X",$C24,"") ->  | N24: =IF(M24="X",$C24,"") ->  | P24: =IF(O24="X",$C24,"") ->  | T24: =IF(S24="X",$C24,"") ->  | V24: =IF(U24="X",$C24,"") ->  | X24: =IF(W24="X",$C24,"") ->  | AB24: =IF(AA24="X",$C24,"") ->  | AD24: =IF(AC24="X",$C24,"") ->  | AF24: =IF(AE24="X",$C24,"") ->  | AH24: =IF(AG24="X",$C24,"") ->  | AJ24: =IF(AI24="X",$C24,"") ->  | AL24: =IF(AK24="X",$C24,"") ->  | AN24: =IF(AM24="X",$C24,"") ->  | AP24: =IF(AO24="X",$C24,"") ->  | AR24: =IF(AQ24="X",$C24,"") ->  | AS24: =IF(AND($E24="M",EXACT($F24,AS$52)=TRUE),"X","") ->  | AT24: =IF(AS24="X",$C24,"") ->  | AU24: =IF($E24="P",$C24,"") -> 187 | AX24: =IF(AW24="X",$C24,"") ->  | AZ24: =IF(AY24="X",$C24,"") ->  | BB24: =IF(BA24="X",$C24,"") ->  | BD24: =IF(BC24="X",$C24,"") ->  | BF24: =IF(BE24="X",$C24,"") ->  | BH24: =IF(BG24="X",$C24,"") ->  | BJ24: =IF(BI24="X",$C24,"") ->  | BL24: =IF(BK24="X",$C24,"") ->  | BN24: =IF(BM24="X",$C24,"") ->  | BP24: =IF(BO24="X",$C24,"") ->  | BR24: =IF(BQ24="X",$C24,"") ->  | BT24: =IF(BS24="X",$C24,"") ->  | BV24: =IF(BU24="X",$C24,"") ->  | BX24: =IF(BW24="X",$C24,"") ->  | BZ24: =IF(BY24="X",$C24,"") ->  | CB24: =IF(CA24="X",$C24,"") ->  | CD24: =IF(CC24="X",$C24,"") ->  | CF24: =IF(CE24="X",$C24,"") -> 
C25: =Liste!E24 -> 214 | D25: =Liste!D24 -> Megie | E25: A | L25: =IF(K25="X",$C25,"") ->  | N25: =IF(M25="X",$C25,"") ->  | P25: =IF(O25="X",$C25,"") ->  | T25: =IF(S25="X",$C25,"") ->  | V25: =IF(U25="X",$C25,"") ->  | X25: =IF(W25="X",$C25,"") ->  | AB25: =IF(AA25="X",$C25,"") ->  | AD25: =IF(AC25="X",$C25,"") ->  | AF25: =IF(AE25="X",$C25,"") ->  | AH25: =IF(AG25="X",$C25,"") ->  | AJ25: =IF(AI25="X",$C25,"") ->  | AL25: =IF(AK25="X",$C25,"") ->  | AN25: =IF(AM25="X",$C25,"") ->  | AP25: =IF(AO25="X",$C25,"") ->  | AR25: =IF(AQ25="X",$C25,"") ->  | AT25: =IF(AS25="X",$C25,"") ->  | AU25: =IF(AND($E25="M",EXACT($F25,AU$52)=TRUE),"X","") ->  | AV25: =IF(AU25="X",$C25,"") ->  | AW25: =IF($E25="P",$C25,"") ->  | AZ25: =IF(AY25="X",$C25,"") ->  | BB25: =IF(BA25="X",$C25,"") ->  | BD25: =IF(BC25="X",$C25,"") ->  | BF25: =IF(BE25="X",$C25,"") ->  | BH25: =IF(BG25="X",$C25,"") ->  | BJ25: =IF(BI25="X",$C25,"") ->  | BL25: =IF(BK25="X",$C25,"") ->  | BN25: =IF(BM25="X",$C25,"") ->  | BP25: =IF(BO25="X",$C25,"") ->  | BR25: =IF(BQ25="X",$C25,"") ->  | BT25: =IF(BS25="X",$C25,"") ->  | BV25: =IF(BU25="X",$C25,"") ->  | BX25: =IF(BW25="X",$C25,"") ->  | BZ25: =IF(BY25="X",$C25,"") ->  | CB25: =IF(CA25="X",$C25,"") ->  | CD25: =IF(CC25="X",$C25,"") ->  | CF25: =IF(CE25="X",$C25,"") -> 
C26: =Liste!E25 -> 337 | D26: =Liste!D25 -> Morana F. | E26: A | L26: =IF(K26="X",$C26,"") ->  | N26: =IF(M26="X",$C26,"") ->  | P26: =IF(O26="X",$C26,"") ->  | T26: =IF(S26="X",$C26,"") ->  | V26: =IF(U26="X",$C26,"") ->  | X26: =IF(W26="X",$C26,"") ->  | AB26: =IF(AA26="X",$C26,"") ->  | AD26: =IF(AC26="X",$C26,"") ->  | AF26: =IF(AE26="X",$C26,"") ->  | AH26: =IF(AG26="X",$C26,"") ->  | AJ26: =IF(AI26="X",$C26,"") ->  | AL26: =IF(AK26="X",$C26,"") ->  | AN26: =IF(AM26="X",$C26,"") ->  | AP26: =IF(AO26="X",$C26,"") ->  | AR26: =IF(AQ26="X",$C26,"") ->  | AT26: =IF(AS26="X",$C26,"") ->  | AV26: =IF(AU26="X",$C26,"") ->  | AW26: =IF(AND($E26="M",EXACT($F26,AW$52)=TRUE),"X","") ->  | AX26: =IF(AW26="X",$C26,"") ->  | AY26: =IF($E26="P",$C26,"") ->  | BB26: =IF(BA26="X",$C26,"") ->  | BD26: =IF(BC26="X",$C26,"") ->  | BF26: =IF(BE26="X",$C26,"") ->  | BH26: =IF(BG26="X",$C26,"") ->  | BJ26: =IF(BI26="X",$C26,"") ->  | BL26: =IF(BK26="X",$C26,"") ->  | BN26: =IF(BM26="X",$C26,"") ->  | BP26: =IF(BO26="X",$C26,"") ->  | BR26: =IF(BQ26="X",$C26,"") ->  | BT26: =IF(BS26="X",$C26,"") ->  | BV26: =IF(BU26="X",$C26,"") ->  | BX26: =IF(BW26="X",$C26,"") ->  | BZ26: =IF(BY26="X",$C26,"") ->  | CB26: =IF(CA26="X",$C26,"") ->  | CD26: =IF(CC26="X",$C26,"") ->  | CF26: =IF(CE26="X",$C26,"") -> 
C27: =Liste!E26 -> 340 | D27: =Liste!D26 -> Morana AM | E27: A | L27: =IF(K27="X",$C27,"") ->  | N27: =IF(M27="X",$C27,"") ->  | P27: =IF(O27="X",$C27,"") ->  | T27: =IF(S27="X",$C27,"") ->  | V27: =IF(U27="X",$C27,"") ->  | X27: =IF(W27="X",$C27,"") ->  | AB27: =IF(AA27="X",$C27,"") ->  | AD27: =IF(AC27="X",$C27,"") ->  | AF27: =IF(AE27="X",$C27,"") ->  | AH27: =IF(AG27="X",$C27,"") ->  | AJ27: =IF(AI27="X",$C27,"") ->  | AL27: =IF(AK27="X",$C27,"") ->  | AN27: =IF(AM27="X",$C27,"") ->  | AP27: =IF(AO27="X",$C27,"") ->  | AR27: =IF(AQ27="X",$C27,"") ->  | AT27: =IF(AS27="X",$C27,"") ->  | AV27: =IF(AU27="X",$C27,"") ->  | AX27: =IF(AW27="X",$C27,"") ->  | AY27: =IF(AND($E27="M",EXACT($F27,AY$52)=TRUE),"X","") ->  | AZ27: =IF(AY27="X",$C27,"") ->  | BA27: =IF($E27="P",$C27,"") ->  | BD27: =IF(BC27="X",$C27,"") ->  | BF27: =IF(BE27="X",$C27,"") ->  | BH27: =IF(BG27="X",$C27,"") ->  | BJ27: =IF(BI27="X",$C27,"") ->  | BL27: =IF(BK27="X",$C27,"") ->  | BN27: =IF(BM27="X",$C27,"") ->  | BP27: =IF(BO27="X",$C27,"") ->  | BR27: =IF(BQ27="X",$C27,"") ->  | BT27: =IF(BS27="X",$C27,"") ->  | BV27: =IF(BU27="X",$C27,"") ->  | BX27: =IF(BW27="X",$C27,"") ->  | BZ27: =IF(BY27="X",$C27,"") ->  | CB27: =IF(CA27="X",$C27,"") ->  | CD27: =IF(CC27="X",$C27,"") ->  | CF27: =IF(CE27="X",$C27,"") -> 
C28: =Liste!E27 -> 265 | D28: =Liste!D27 -> Morana L | E28: A | L28: =IF(K28="X",$C28,"") ->  | N28: =IF(M28="X",$C28,"") ->  | P28: =IF(O28="X",$C28,"") ->  | T28: =IF(S28="X",$C28,"") ->  | V28: =IF(U28="X",$C28,"") ->  | X28: =IF(W28="X",$C28,"") ->  | AB28: =IF(AA28="X",$C28,"") ->  | AD28: =IF(AC28="X",$C28,"") ->  | AF28: =IF(AE28="X",$C28,"") ->  | AH28: =IF(AG28="X",$C28,"") ->  | AJ28: =IF(AI28="X",$C28,"") ->  | AL28: =IF(AK28="X",$C28,"") ->  | AN28: =IF(AM28="X",$C28,"") ->  | AP28: =IF(AO28="X",$C28,"") ->  | AR28: =IF(AQ28="X",$C28,"") ->  | AT28: =IF(AS28="X",$C28,"") ->  | AV28: =IF(AU28="X",$C28,"") ->  | AX28: =IF(AW28="X",$C28,"") ->  | AZ28: =IF(AY28="X",$C28,"") ->  | BA28: =IF(AND($E28="M",EXACT($F28,BA$52)=TRUE),"X","") ->  | BB28: =IF(BA28="X",$C28,"") ->  | BC28: =IF($E28="P",$C28,"") ->  | BF28: =IF(BE28="X",$C28,"") ->  | BH28: =IF(BG28="X",$C28,"") ->  | BJ28: =IF(BI28="X",$C28,"") ->  | BL28: =IF(BK28="X",$C28,"") ->  | BN28: =IF(BM28="X",$C28,"") ->  | BP28: =IF(BO28="X",$C28,"") ->  | BR28: =IF(BQ28="X",$C28,"") ->  | BT28: =IF(BS28="X",$C28,"") ->  | BV28: =IF(BU28="X",$C28,"") ->  | BX28: =IF(BW28="X",$C28,"") ->  | BZ28: =IF(BY28="X",$C28,"") ->  | CB28: =IF(CA28="X",$C28,"") ->  | CD28: =IF(CC28="X",$C28,"") ->  | CF28: =IF(CE28="X",$C28,"") -> 
C29: =Liste!E28 -> 264 | D29: =Liste!D28 -> Morana P | E29: A | L29: =IF(K29="X",$C29,"") ->  | N29: =IF(M29="X",$C29,"") ->  | P29: =IF(O29="X",$C29,"") ->  | T29: =IF(S29="X",$C29,"") ->  | V29: =IF(U29="X",$C29,"") ->  | X29: =IF(W29="X",$C29,"") ->  | AB29: =IF(AA29="X",$C29,"") ->  | AD29: =IF(AC29="X",$C29,"") ->  | AF29: =IF(AE29="X",$C29,"") ->  | AH29: =IF(AG29="X",$C29,"") ->  | AJ29: =IF(AI29="X",$C29,"") ->  | AL29: =IF(AK29="X",$C29,"") ->  | AN29: =IF(AM29="X",$C29,"") ->  | AP29: =IF(AO29="X",$C29,"") ->  | AR29: =IF(AQ29="X",$C29,"") ->  | AT29: =IF(AS29="X",$C29,"") ->  | AV29: =IF(AU29="X",$C29,"") ->  | AX29: =IF(AW29="X",$C29,"") ->  | AZ29: =IF(AY29="X",$C29,"") ->  | BB29: =IF(BA29="X",$C29,"") ->  | BC29: =IF(AND($E29="M",EXACT($F29,BC$52)=TRUE),"X","") ->  | BD29: =IF(BC29="X",$C29,"") ->  | BE29: =IF($E29="P",$C29,"") ->  | BH29: =IF(BG29="X",$C29,"") ->  | BJ29: =IF(BI29="X",$C29,"") ->  | BL29: =IF(BK29="X",$C29,"") ->  | BN29: =IF(BM29="X",$C29,"") ->  | BP29: =IF(BO29="X",$C29,"") ->  | BR29: =IF(BQ29="X",$C29,"") ->  | BT29: =IF(BS29="X",$C29,"") ->  | BV29: =IF(BU29="X",$C29,"") ->  | BX29: =IF(BW29="X",$C29,"") ->  | BZ29: =IF(BY29="X",$C29,"") ->  | CB29: =IF(CA29="X",$C29,"") ->  | CD29: =IF(CC29="X",$C29,"") ->  | CF29: =IF(CE29="X",$C29,"") -> 
C30: =Liste!E29 -> 201 | D30: =Liste!D29 -> Optimo SCI | E30: A | L30: =IF(K30="X",$C30,"") ->  | N30: =IF(M30="X",$C30,"") ->  | P30: =IF(O30="X",$C30,"") ->  | T30: =IF(S30="X",$C30,"") ->  | V30: =IF(U30="X",$C30,"") ->  | X30: =IF(W30="X",$C30,"") ->  | AB30: =IF(AA30="X",$C30,"") ->  | AD30: =IF(AC30="X",$C30,"") ->  | AF30: =IF(AE30="X",$C30,"") ->  | AH30: =IF(AG30="X",$C30,"") ->  | AJ30: =IF(AI30="X",$C30,"") ->  | AL30: =IF(AK30="X",$C30,"") ->  | AN30: =IF(AM30="X",$C30,"") ->  | AP30: =IF(AO30="X",$C30,"") ->  | AR30: =IF(AQ30="X",$C30,"") ->  | AT30: =IF(AS30="X",$C30,"") ->  | AV30: =IF(AU30="X",$C30,"") ->  | AX30: =IF(AW30="X",$C30,"") ->  | AZ30: =IF(AY30="X",$C30,"") ->  | BB30: =IF(BA30="X",$C30,"") ->  | BD30: =IF(BC30="X",$C30,"") ->  | BE30: =IF(AND($E30="M",EXACT($F30,BE$52)=TRUE),"X","") ->  | BF30: =IF(BE30="X",$C30,"") ->  | BG30: =IF($E30="P",$C30,"") ->  | BJ30: =IF(BI30="X",$C30,"") ->  | BL30: =IF(BK30="X",$C30,"") ->  | BN30: =IF(BM30="X",$C30,"") ->  | BP30: =IF(BO30="X",$C30,"") ->  | BR30: =IF(BQ30="X",$C30,"") ->  | BT30: =IF(BS30="X",$C30,"") ->  | BV30: =IF(BU30="X",$C30,"") ->  | BX30: =IF(BW30="X",$C30,"") ->  | BZ30: =IF(BY30="X",$C30,"") ->  | CB30: =IF(CA30="X",$C30,"") ->  | CD30: =IF(CC30="X",$C30,"") ->  | CF30: =IF(CE30="X",$C30,"") -> 
C31: =Liste!E30 -> 379 | D31: =Liste!D30 -> Ortega J. | E31: P | L31: =IF(K31="X",$C31,"") ->  | N31: =IF(M31="X",$C31,"") ->  | P31: =IF(O31="X",$C31,"") ->  | T31: =IF(S31="X",$C31,"") ->  | V31: =IF(U31="X",$C31,"") ->  | X31: =IF(W31="X",$C31,"") ->  | AB31: =IF(AA31="X",$C31,"") ->  | AD31: =IF(AC31="X",$C31,"") ->  | AF31: =IF(AE31="X",$C31,"") ->  | AH31: =IF(AG31="X",$C31,"") ->  | AJ31: =IF(AI31="X",$C31,"") ->  | AL31: =IF(AK31="X",$C31,"") ->  | AN31: =IF(AM31="X",$C31,"") ->  | AP31: =IF(AO31="X",$C31,"") ->  | AR31: =IF(AQ31="X",$C31,"") ->  | AT31: =IF(AS31="X",$C31,"") ->  | AV31: =IF(AU31="X",$C31,"") ->  | AX31: =IF(AW31="X",$C31,"") ->  | AZ31: =IF(AY31="X",$C31,"") ->  | BB31: =IF(BA31="X",$C31,"") ->  | BD31: =IF(BC31="X",$C31,"") ->  | BF31: =IF(BE31="X",$C31,"") ->  | BG31: =IF(AND($E31="M",EXACT($F31,BG$52)=TRUE),"X","") ->  | BH31: =IF(BG31="X",$C31,"") ->  | BI31: =IF($E31="P",$C31,"") -> 379 | BL31: =IF(BK31="X",$C31,"") ->  | BN31: =IF(BM31="X",$C31,"") ->  | BP31: =IF(BO31="X",$C31,"") ->  | BR31: =IF(BQ31="X",$C31,"") ->  | BT31: =IF(BS31="X",$C31,"") ->  | BV31: =IF(BU31="X",$C31,"") ->  | BX31: =IF(BW31="X",$C31,"") ->  | BZ31: =IF(BY31="X",$C31,"") ->  | CB31: =IF(CA31="X",$C31,"") ->  | CD31: =IF(CC31="X",$C31,"") ->  | CF31: =IF(CE31="X",$C31,"") -> 
C32: =Liste!E31 -> 265 | D32: =Liste!D31 -> Ortega S. | E32: A | L32: =IF(K32="X",$C32,"") ->  | N32: =IF(M32="X",$C32,"") ->  | P32: =IF(O32="X",$C32,"") ->  | T32: =IF(S32="X",$C32,"") ->  | V32: =IF(U32="X",$C32,"") ->  | X32: =IF(W32="X",$C32,"") ->  | AB32: =IF(AA32="X",$C32,"") ->  | AD32: =IF(AC32="X",$C32,"") ->  | AF32: =IF(AE32="X",$C32,"") ->  | AH32: =IF(AG32="X",$C32,"") ->  | AJ32: =IF(AI32="X",$C32,"") ->  | AL32: =IF(AK32="X",$C32,"") ->  | AN32: =IF(AM32="X",$C32,"") ->  | AP32: =IF(AO32="X",$C32,"") ->  | AR32: =IF(AQ32="X",$C32,"") ->  | AT32: =IF(AS32="X",$C32,"") ->  | AV32: =IF(AU32="X",$C32,"") ->  | AX32: =IF(AW32="X",$C32,"") ->  | AZ32: =IF(AY32="X",$C32,"") ->  | BB32: =IF(BA32="X",$C32,"") ->  | BD32: =IF(BC32="X",$C32,"") ->  | BF32: =IF(BE32="X",$C32,"") ->  | BH32: =IF(BG32="X",$C32,"") ->  | BI32: =IF(AND($E32="M",EXACT($F32,BI$52)=TRUE),"X","") ->  | BJ32: =IF(BI32="X",$C32,"") ->  | BK32: =IF($E32="P",$C32,"") ->  | BN32: =IF(BM32="X",$C32,"") ->  | BP32: =IF(BO32="X",$C32,"") ->  | BR32: =IF(BQ32="X",$C32,"") ->  | BT32: =IF(BS32="X",$C32,"") ->  | BV32: =IF(BU32="X",$C32,"") ->  | BX32: =IF(BW32="X",$C32,"") ->  | BZ32: =IF(BY32="X",$C32,"") ->  | CB32: =IF(CA32="X",$C32,"") ->  | CD32: =IF(CC32="X",$C32,"") ->  | CF32: =IF(CE32="X",$C32,"") -> 
C33: =Liste!E32 -> 51 | D33: =Liste!D32 -> Piochot | E33: A | L33: =IF(K33="X",$C33,"") ->  | N33: =IF(M33="X",$C33,"") ->  | P33: =IF(O33="X",$C33,"") ->  | T33: =IF(S33="X",$C33,"") ->  | V33: =IF(U33="X",$C33,"") ->  | X33: =IF(W33="X",$C33,"") ->  | AB33: =IF(AA33="X",$C33,"") ->  | AD33: =IF(AC33="X",$C33,"") ->  | AF33: =IF(AE33="X",$C33,"") ->  | AH33: =IF(AG33="X",$C33,"") ->  | AJ33: =IF(AI33="X",$C33,"") ->  | AL33: =IF(AK33="X",$C33,"") ->  | AN33: =IF(AM33="X",$C33,"") ->  | AP33: =IF(AO33="X",$C33,"") ->  | AR33: =IF(AQ33="X",$C33,"") ->  | AT33: =IF(AS33="X",$C33,"") ->  | AV33: =IF(AU33="X",$C33,"") ->  | AX33: =IF(AW33="X",$C33,"") ->  | AZ33: =IF(AY33="X",$C33,"") ->  | BB33: =IF(BA33="X",$C33,"") ->  | BD33: =IF(BC33="X",$C33,"") ->  | BF33: =IF(BE33="X",$C33,"") ->  | BH33: =IF(BG33="X",$C33,"") ->  | BJ33: =IF(BI33="X",$C33,"") ->  | BK33: =IF(AND($E33="M",EXACT($F33,BK$52)=TRUE),"X","") ->  | BL33: =IF(BK33="X",$C33,"") ->  | BM33: =IF($E33="P",$C33,"") ->  | BP33: =IF(BO33="X",$C33,"") ->  | BR33: =IF(BQ33="X",$C33,"") ->  | BT33: =IF(BS33="X",$C33,"") ->  | BV33: =IF(BU33="X",$C33,"") ->  | BX33: =IF(BW33="X",$C33,"") ->  | BZ33: =IF(BY33="X",$C33,"") ->  | CB33: =IF(CA33="X",$C33,"") ->  | CD33: =IF(CC33="X",$C33,"") ->  | CF33: =IF(CE33="X",$C33,"") -> 
C34: =Liste!E33 -> 317 | D34: =Liste!D33 -> Pouillot | E34: A | L34: =IF(K34="X",$C34,"") ->  | N34: =IF(M34="X",$C34,"") ->  | P34: =IF(O34="X",$C34,"") ->  | T34: =IF(S34="X",$C34,"") ->  | V34: =IF(U34="X",$C34,"") ->  | X34: =IF(W34="X",$C34,"") ->  | AB34: =IF(AA34="X",$C34,"") ->  | AD34: =IF(AC34="X",$C34,"") ->  | AF34: =IF(AE34="X",$C34,"") ->  | AH34: =IF(AG34="X",$C34,"") ->  | AJ34: =IF(AI34="X",$C34,"") ->  | AL34: =IF(AK34="X",$C34,"") ->  | AN34: =IF(AM34="X",$C34,"") ->  | AP34: =IF(AO34="X",$C34,"") ->  | AR34: =IF(AQ34="X",$C34,"") ->  | AT34: =IF(AS34="X",$C34,"") ->  | AV34: =IF(AU34="X",$C34,"") ->  | AX34: =IF(AW34="X",$C34,"") ->  | AZ34: =IF(AY34="X",$C34,"") ->  | BB34: =IF(BA34="X",$C34,"") ->  | BD34: =IF(BC34="X",$C34,"") ->  | BF34: =IF(BE34="X",$C34,"") ->  | BH34: =IF(BG34="X",$C34,"") ->  | BJ34: =IF(BI34="X",$C34,"") ->  | BL34: =IF(BK34="X",$C34,"") ->  | BM34: =IF(AND($E34="M",EXACT($F34,BM$52)=TRUE),"X","") ->  | BN34: =IF(BM34="X",$C34,"") ->  | BO34: =IF($E34="P",$C34,"") ->  | BR34: =IF(BQ34="X",$C34,"") ->  | BT34: =IF(BS34="X",$C34,"") ->  | BV34: =IF(BU34="X",$C34,"") ->  | BX34: =IF(BW34="X",$C34,"") ->  | BZ34: =IF(BY34="X",$C34,"") ->  | CB34: =IF(CA34="X",$C34,"") ->  | CD34: =IF(CC34="X",$C34,"") ->  | CF34: =IF(CE34="X",$C34,"") -> 
C35: =Liste!E34 -> 265 | D35: =Liste!D34 -> Ramirez | E35: A | L35: =IF(K35="X",$C35,"") ->  | N35: =IF(M35="X",$C35,"") ->  | P35: =IF(O35="X",$C35,"") ->  | T35: =IF(S35="X",$C35,"") ->  | V35: =IF(U35="X",$C35,"") ->  | X35: =IF(W35="X",$C35,"") ->  | AB35: =IF(AA35="X",$C35,"") ->  | AD35: =IF(AC35="X",$C35,"") ->  | AF35: =IF(AE35="X",$C35,"") ->  | AH35: =IF(AG35="X",$C35,"") ->  | AJ35: =IF(AI35="X",$C35,"") ->  | AL35: =IF(AK35="X",$C35,"") ->  | AN35: =IF(AM35="X",$C35,"") ->  | AP35: =IF(AO35="X",$C35,"") ->  | AR35: =IF(AQ35="X",$C35,"") ->  | AT35: =IF(AS35="X",$C35,"") ->  | AV35: =IF(AU35="X",$C35,"") ->  | AX35: =IF(AW35="X",$C35,"") ->  | AZ35: =IF(AY35="X",$C35,"") ->  | BB35: =IF(BA35="X",$C35,"") ->  | BD35: =IF(BC35="X",$C35,"") ->  | BF35: =IF(BE35="X",$C35,"") ->  | BH35: =IF(BG35="X",$C35,"") ->  | BJ35: =IF(BI35="X",$C35,"") ->  | BL35: =IF(BK35="X",$C35,"") ->  | BN35: =IF(BM35="X",$C35,"") ->  | BO35: =IF(AND($E35="M",EXACT($F35,BO$52)=TRUE),"X","") ->  | BP35: =IF(BO35="X",$C35,"") ->  | BQ35: =IF($E35="P",$C35,"") ->  | BT35: =IF(BS35="X",$C35,"") ->  | BV35: =IF(BU35="X",$C35,"") ->  | BX35: =IF(BW35="X",$C35,"") ->  | BZ35: =IF(BY35="X",$C35,"") ->  | CB35: =IF(CA35="X",$C35,"") ->  | CD35: =IF(CC35="X",$C35,"") ->  | CF35: =IF(CE35="X",$C35,"") -> 
C36: =Liste!E35 -> 268 | D36: =Liste!D35 -> Segura Mari | E36: A | L36: =IF(K36="X",$C36,"") ->  | N36: =IF(M36="X",$C36,"") ->  | P36: =IF(O36="X",$C36,"") ->  | T36: =IF(S36="X",$C36,"") ->  | V36: =IF(U36="X",$C36,"") ->  | X36: =IF(W36="X",$C36,"") ->  | AB36: =IF(AA36="X",$C36,"") ->  | AD36: =IF(AC36="X",$C36,"") ->  | AF36: =IF(AE36="X",$C36,"") ->  | AH36: =IF(AG36="X",$C36,"") ->  | AJ36: =IF(AI36="X",$C36,"") ->  | AL36: =IF(AK36="X",$C36,"") ->  | AN36: =IF(AM36="X",$C36,"") ->  | AP36: =IF(AO36="X",$C36,"") ->  | AR36: =IF(AQ36="X",$C36,"") ->  | AT36: =IF(AS36="X",$C36,"") ->  | AV36: =IF(AU36="X",$C36,"") ->  | AX36: =IF(AW36="X",$C36,"") ->  | AZ36: =IF(AY36="X",$C36,"") ->  | BB36: =IF(BA36="X",$C36,"") ->  | BD36: =IF(BC36="X",$C36,"") ->  | BF36: =IF(BE36="X",$C36,"") ->  | BH36: =IF(BG36="X",$C36,"") ->  | BJ36: =IF(BI36="X",$C36,"") ->  | BL36: =IF(BK36="X",$C36,"") ->  | BN36: =IF(BM36="X",$C36,"") ->  | BP36: =IF(BO36="X",$C36,"") ->  | BQ36: =IF(AND($E36="M",EXACT($F36,BQ$52)=TRUE),"X","") ->  | BR36: =IF(BQ36="X",$C36,"") ->  | BS36: =IF($E36="P",$C36,"") ->  | BV36: =IF(BU36="X",$C36,"") ->  | BX36: =IF(BW36="X",$C36,"") ->  | BZ36: =IF(BY36="X",$C36,"") ->  | CB36: =IF(CA36="X",$C36,"") ->  | CD36: =IF(CC36="X",$C36,"") ->  | CF36: =IF(CE36="X",$C36,"") -> 
C37: =Liste!E36 -> 210 | D37: =Liste!D36 -> Simoncini | E37: A | L37: =IF(K37="X",$C37,"") ->  | N37: =IF(M37="X",$C37,"") ->  | P37: =IF(O37="X",$C37,"") ->  | T37: =IF(S37="X",$C37,"") ->  | V37: =IF(U37="X",$C37,"") ->  | X37: =IF(W37="X",$C37,"") ->  | AB37: =IF(AA37="X",$C37,"") ->  | AD37: =IF(AC37="X",$C37,"") ->  | AF37: =IF(AE37="X",$C37,"") ->  | AH37: =IF(AG37="X",$C37,"") ->  | AJ37: =IF(AI37="X",$C37,"") ->  | AL37: =IF(AK37="X",$C37,"") ->  | AN37: =IF(AM37="X",$C37,"") ->  | AP37: =IF(AO37="X",$C37,"") ->  | AR37: =IF(AQ37="X",$C37,"") ->  | AT37: =IF(AS37="X",$C37,"") ->  | AV37: =IF(AU37="X",$C37,"") ->  | AX37: =IF(AW37="X",$C37,"") ->  | AZ37: =IF(AY37="X",$C37,"") ->  | BB37: =IF(BA37="X",$C37,"") ->  | BD37: =IF(BC37="X",$C37,"") ->  | BF37: =IF(BE37="X",$C37,"") ->  | BH37: =IF(BG37="X",$C37,"") ->  | BJ37: =IF(BI37="X",$C37,"") ->  | BL37: =IF(BK37="X",$C37,"") ->  | BN37: =IF(BM37="X",$C37,"") ->  | BP37: =IF(BO37="X",$C37,"") ->  | BR37: =IF(BQ37="X",$C37,"") ->  | BS37: =IF(AND($E37="M",EXACT($F37,BS$52)=TRUE),"X","") ->  | BT37: =IF(BS37="X",$C37,"") ->  | BU37: =IF($E37="P",$C37,"") ->  | BX37: =IF(BW37="X",$C37,"") ->  | BZ37: =IF(BY37="X",$C37,"") ->  | CB37: =IF(CA37="X",$C37,"") ->  | CD37: =IF(CC37="X",$C37,"") ->  | CF37: =IF(CE37="X",$C37,"") -> 
C38: =Liste!E37 -> 301 | D38: =Liste!D37 -> Vautravers | E38: A | H38: =IF(G38="X",$C38,"") ->  | J38: =IF(I38="X",$C38,"") ->  | L38: =IF(K38="X",$C38,"") ->  | N38: =IF(M38="X",$C38,"") ->  | P38: =IF(O38="X",$C38,"") ->  | T38: =IF(S38="X",$C38,"") ->  | V38: =IF(U38="X",$C38,"") ->  | X38: =IF(W38="X",$C38,"") ->  | AB38: =IF(AA38="X",$C38,"") ->  | AD38: =IF(AC38="X",$C38,"") ->  | AF38: =IF(AE38="X",$C38,"") ->  | AH38: =IF(AG38="X",$C38,"") ->  | AJ38: =IF(AI38="X",$C38,"") ->  | AL38: =IF(AK38="X",$C38,"") ->  | AN38: =IF(AM38="X",$C38,"") ->  | AP38: =IF(AO38="X",$C38,"") ->  | AR38: =IF(AQ38="X",$C38,"") ->  | AT38: =IF(AS38="X",$C38,"") ->  | AV38: =IF(AU38="X",$C38,"") ->  | AX38: =IF(AW38="X",$C38,"") ->  | AZ38: =IF(AY38="X",$C38,"") ->  | BB38: =IF(BA38="X",$C38,"") ->  | BD38: =IF(BC38="X",$C38,"") ->  | BF38: =IF(BE38="X",$C38,"") ->  | BH38: =IF(BG38="X",$C38,"") ->  | BJ38: =IF(BI38="X",$C38,"") ->  | BL38: =IF(BK38="X",$C38,"") ->  | BN38: =IF(BM38="X",$C38,"") ->  | BP38: =IF(BO38="X",$C38,"") ->  | BR38: =IF(BQ38="X",$C38,"") ->  | BT38: =IF(BS38="X",$C38,"") ->  | BU38: =IF(AND($E38="M",EXACT($F38,BU$52)=TRUE),"X","") ->  | BV38: =IF(BU38="X",$C38,"") ->  | BW38: =IF($E38="P",$C38,"") ->  | BZ38: =IF(BY38="X",$C38,"") ->  | CB38: =IF(CA38="X",$C38,"") ->  | CD38: =IF(CC38="X",$C38,"") ->  | CF38: =IF(CE38="X",$C38,"") -> 
C39: =Liste!E38 -> 245 | D39: =Liste!D38 -> Ventajou | E39: A | L39: =IF(K39="X",$C39,"") ->  | N39: =IF(M39="X",$C39,"") ->  | P39: =IF(O39="X",$C39,"") ->  | T39: =IF(S39="X",$C39,"") ->  | V39: =IF(U39="X",$C39,"") ->  | X39: =IF(W39="X",$C39,"") ->  | AB39: =IF(AA39="X",$C39,"") ->  | AD39: =IF(AC39="X",$C39,"") ->  | AF39: =IF(AE39="X",$C39,"") ->  | AH39: =IF(AG39="X",$C39,"") ->  | AJ39: =IF(AI39="X",$C39,"") ->  | AL39: =IF(AK39="X",$C39,"") ->  | AN39: =IF(AM39="X",$C39,"") ->  | AP39: =IF(AO39="X",$C39,"") ->  | AR39: =IF(AQ39="X",$C39,"") ->  | AT39: =IF(AS39="X",$C39,"") ->  | AV39: =IF(AU39="X",$C39,"") ->  | AX39: =IF(AW39="X",$C39,"") ->  | AZ39: =IF(AY39="X",$C39,"") ->  | BB39: =IF(BA39="X",$C39,"") ->  | BD39: =IF(BC39="X",$C39,"") ->  | BF39: =IF(BE39="X",$C39,"") ->  | BH39: =IF(BG39="X",$C39,"") ->  | BJ39: =IF(BI39="X",$C39,"") ->  | BL39: =IF(BK39="X",$C39,"") ->  | BN39: =IF(BM39="X",$C39,"") ->  | BP39: =IF(BO39="X",$C39,"") ->  | BR39: =IF(BQ39="X",$C39,"") ->  | BT39: =IF(BS39="X",$C39,"") ->  | BV39: =IF(BU39="X",$C39,"") ->  | BW39: =IF(AND($E39="M",EXACT($F39,BW$52)=TRUE),"X","") ->  | BX39: =IF(BW39="X",$C39,"") ->  | BY39: =IF($E39="P",$C39,"") ->  | CB39: =IF(CA39="X",$C39,"") ->  | CD39: =IF(CC39="X",$C39,"") ->  | CF39: =IF(CE39="X",$C39,"") -> 
C40: =Liste!E39 -> 23 | D40: =Liste!D39 -> Vernet | E40: A | L40: =IF(K40="X",$C40,"") ->  | N40: =IF(M40="X",$C40,"") ->  | P40: =IF(O40="X",$C40,"") ->  | T40: =IF(S40="X",$C40,"") ->  | V40: =IF(U40="X",$C40,"") ->  | X40: =IF(W40="X",$C40,"") ->  | AB40: =IF(AA40="X",$C40,"") ->  | AD40: =IF(AC40="X",$C40,"") ->  | AF40: =IF(AE40="X",$C40,"") ->  | AH40: =IF(AG40="X",$C40,"") ->  | AJ40: =IF(AI40="X",$C40,"") ->  | AL40: =IF(AK40="X",$C40,"") ->  | AN40: =IF(AM40="X",$C40,"") ->  | AP40: =IF(AO40="X",$C40,"") ->  | AR40: =IF(AQ40="X",$C40,"") ->  | AT40: =IF(AS40="X",$C40,"") ->  | AV40: =IF(AU40="X",$C40,"") ->  | AX40: =IF(AW40="X",$C40,"") ->  | AZ40: =IF(AY40="X",$C40,"") ->  | BB40: =IF(BA40="X",$C40,"") ->  | BD40: =IF(BC40="X",$C40,"") ->  | BF40: =IF(BE40="X",$C40,"") ->  | BH40: =IF(BG40="X",$C40,"") ->  | BJ40: =IF(BI40="X",$C40,"") ->  | BL40: =IF(BK40="X",$C40,"") ->  | BN40: =IF(BM40="X",$C40,"") ->  | BP40: =IF(BO40="X",$C40,"") ->  | BR40: =IF(BQ40="X",$C40,"") ->  | BT40: =IF(BS40="X",$C40,"") ->  | BV40: =IF(BU40="X",$C40,"") ->  | BX40: =IF(BW40="X",$C40,"") ->  | BY40: =IF(AND($E40="M",EXACT($F40,BY$52)=TRUE),"X","") ->  | BZ40: =IF(BY40="X",$C40,"") ->  | CA40: =IF($E40="P",$C40,"") ->  | CD40: =IF(CC40="X",$C40,"") ->  | CF40: =IF(CE40="X",$C40,"") -> 
C41: =Liste!E40 -> 209 | D41: =Liste!D40 -> Villard Toddi | E41: A | H41: =IF(G41="X",$C41,"") ->  | L41: =IF(K41="X",$C41,"") ->  | N41: =IF(M41="X",$C41,"") ->  | P41: =IF(O41="X",$C41,"") ->  | T41: =IF(S41="X",$C41,"") ->  | V41: =IF(U41="X",$C41,"") ->  | X41: =IF(W41="X",$C41,"") ->  | AB41: =IF(AA41="X",$C41,"") ->  | AD41: =IF(AC41="X",$C41,"") ->  | AF41: =IF(AE41="X",$C41,"") ->  | AH41: =IF(AG41="X",$C41,"") ->  | AJ41: =IF(AI41="X",$C41,"") ->  | AL41: =IF(AK41="X",$C41,"") ->  | AN41: =IF(AM41="X",$C41,"") ->  | AP41: =IF(AO41="X",$C41,"") ->  | AR41: =IF(AQ41="X",$C41,"") ->  | AT41: =IF(AS41="X",$C41,"") ->  | AV41: =IF(AU41="X",$C41,"") ->  | AX41: =IF(AW41="X",$C41,"") ->  | AZ41: =IF(AY41="X",$C41,"") ->  | BB41: =IF(BA41="X",$C41,"") ->  | BD41: =IF(BC41="X",$C41,"") ->  | BF41: =IF(BE41="X",$C41,"") ->  | BH41: =IF(BG41="X",$C41,"") ->  | BJ41: =IF(BI41="X",$C41,"") ->  | BL41: =IF(BK41="X",$C41,"") ->  | BN41: =IF(BM41="X",$C41,"") ->  | BP41: =IF(BO41="X",$C41,"") ->  | BR41: =IF(BQ41="X",$C41,"") ->  | BT41: =IF(BS41="X",$C41,"") ->  | BV41: =IF(BU41="X",$C41,"") ->  | BX41: =IF(BW41="X",$C41,"") ->  | BZ41: =IF(BY41="X",$C41,"") ->  | CA41: =IF(AND($E41="M",EXACT($F41,CA$52)=TRUE),"X","") ->  | CB41: =IF(CA41="X",$C41,"") ->  | CC41: =IF($E41="P",$C41,"") ->  | CF41: =IF(CE41="X",$C41,"") -> 
C42: =Liste!E41 -> 308 | D42: =Liste!D41 -> Vivona | E42: P | H42: =IF(G42="X",$C42,"") ->  | L42: =IF(K42="X",$C42,"") ->  | N42: =IF(M42="X",$C42,"") ->  | P42: =IF(O42="X",$C42,"") ->  | T42: =IF(S42="X",$C42,"") ->  | V42: =IF(U42="X",$C42,"") ->  | X42: =IF(W42="X",$C42,"") ->  | AB42: =IF(AA42="X",$C42,"") ->  | AD42: =IF(AC42="X",$C42,"") ->  | AF42: =IF(AE42="X",$C42,"") ->  | AH42: =IF(AG42="X",$C42,"") ->  | AJ42: =IF(AI42="X",$C42,"") ->  | AL42: =IF(AK42="X",$C42,"") ->  | AN42: =IF(AM42="X",$C42,"") ->  | AP42: =IF(AO42="X",$C42,"") ->  | AR42: =IF(AQ42="X",$C42,"") ->  | AT42: =IF(AS42="X",$C42,"") ->  | AV42: =IF(AU42="X",$C42,"") ->  | AX42: =IF(AW42="X",$C42,"") ->  | AZ42: =IF(AY42="X",$C42,"") ->  | BB42: =IF(BA42="X",$C42,"") ->  | BD42: =IF(BC42="X",$C42,"") ->  | BF42: =IF(BE42="X",$C42,"") ->  | BH42: =IF(BG42="X",$C42,"") ->  | BJ42: =IF(BI42="X",$C42,"") ->  | BL42: =IF(BK42="X",$C42,"") ->  | BN42: =IF(BM42="X",$C42,"") ->  | BP42: =IF(BO42="X",$C42,"") ->  | BR42: =IF(BQ42="X",$C42,"") ->  | BT42: =IF(BS42="X",$C42,"") ->  | BV42: =IF(BU42="X",$C42,"") ->  | BX42: =IF(BW42="X",$C42,"") ->  | BZ42: =IF(BY42="X",$C42,"") ->  | CB42: =IF(CA42="X",$C42,"") ->  | CC42: =IF(AND($E42="M",EXACT($F42,CC$52)=TRUE),"X","") ->  | CD42: =IF(CC42="X",$C42,"") ->  | CE42: =IF($E42="P",$C42,"") -> 308
C43: =COUNTIF(E4:E42,"A")&" Abs soit "&SUMIF(E4:E42,"A",C4:C42)&" tantièmes" -> 32 Abs soit 7539 tantièmes | U43: 1er tour | AA43: 2ème tour
C44: =COUNTIF(E4:E42,"P")&" Présents soit "&SUMIF(E4:E42,"P",C4:C42)&" tantièmes" -> 6 Présents soit 2077 tantièmes | I44: Majorité | O44: Simple Art. 24 | U44: =ROUNDUP(((E47+E49)/2),0)+1 -> 1346 | AA44: // | AE44: Présents+representés | CF44: =IF(#REF!="P",#REF!,"") -> 
C45: =COUNTIF(E4:E42,"M")&" Pouvoirs soit "&SUMIF(E4:E42,"M",C4:C42)&" tantièmes" -> 1 Pouvoirs soit 306 tantièmes | O45: Absolue Art 25 | U45: =(E50/2)+1 -> 4962 | Y45: ð | AA45: =U44 -> 1346 | AE45: Présents+représentés+absents
C46: ="Présents+pouvoirs : "&(SUMIF(E4:E42,"P",C4:C42))+(SUMIF(E4:E42,"M",C4:C42)) -> Présents+pouvoirs : 2383 | O46: Double Art. 26 | U46: =ROUNDUP((((E50)*2)/3),0)+1 -> 6616 | AA46: // | AE46: Présents+représentés+absents
C47: ="Tantièmes pouvoirs : "&G47+I47+K47+M47+O47+Q47+S47+U47+W47+Y47+AA47+AC47+AE47+AG47+AI47+AK47+AM47+AO47+AQ47+AS47+AU47+AW47+AY47+BA47+BC47+BE47+BG47+BI47+BK47+BM47+BO47+BQ47+BS47+BU47+BW47+BY47+CA47+CC47+CE47 -> Tantièmes pouvoirs : 306 | E47: =G47+I47+K47+M47+O47+Q47+S47+U47+W47+Y47+AA47+AC47+AE47+AG47+AI47+AK47+AM47+AO47+AQ47+AS47+AU47+AW47+AY47+BA47+BC47+BE47+BG47+BI47+BK47+BM47+BO47+BQ47+BS47+BU47+BW47+BY47+CA47+CC47+CE47 -> 306 | G47: =IF(G49=0,0,G49-G50) -> 0 | H47: =H49-H50 -> 0 | I47: =IF(I49=0,0,I49-I50) -> 0 | J47: 0 | K47: 0 | L47: 406 | M47: 0 | N47: 0 | O47: 0 | P47: 0 | Q47: 0 | R47: 0 | S47: 0 | T47: 0 | U47: 0 | V47: 0 | W47: 0 | X47: 0 | Y47: 0 | Z47: 0 | AA47: 0 | AB47: 444 | AC47: 0 | AD47: 0 | AE47: 0 | AF47: 353 | AG47: 0 | AH47: 0 | AI47: 0 | AJ47: 0 | AK47: 0 | AL47: 0 | AM47: 0 | AN47: 0 | AO47: 0 | AP47: 0 | AQ47: 0 | AR47: 0 | AS47: 0 | AT47: 187 | AU47: 306 | AV47: 306 | AW47: 0 | AX47: 0 | AY47: 0 | AZ47: 0 | BA47: 0 | BB47: 0 | BC47: 0 | BD47: 0 | BE47: 0 | BF47: 0 | BG47: 0 | BH47: 379 | BI47: 0 | BJ47: 0 | BK47: 0 | BL47: 0 | BM47: 0 | BN47: 0 | BO47: 0 | BP47: 0 | BQ47: 0 | BR47: 0 | BS47: 0 | BT47: 0 | BU47: =IF(BU49=0,0,BU49-BU50) -> 0 | BV47: 0 | BW47: 0 | BX47: 0 | BY47: 0 | BZ47: 0 | CA47: 0 | CB47: 0 | CC47: 0 | CD47: 308 | CE47: 0
A48: Seuils | C48: ="Pouvoirs pris : "&G48+I48+K48+M48+O48+Q48+S48+U48+W48+Y48+AA48+AC48+AE48+AG48+AI48+AK48+AM48+AO48+AQ48+AS48+AU48+AW48+AY48+BA48+BC48+BE48+BG48+BI48+BK48+BM48+BO48+BQ48+BS48+BU48+BW48+BY48+CA48+CC48+CE48 -> Pouvoirs pris : 1 | E48: =G48+I48+K48+M48+O48+Q48+S48+U48+W48+Y48+AA48+AC48+AE48+AG48+AI48+AK48+AM48+AO48+AQ48+AS48+AU48+AW48+AY48+BA48+BC48+BE48+BG48+BI48+BK48+BM48+BO48+BQ48+BS48+BU48+BW48+BY48+CA48+CC48+CE48 -> 1 | G48: =IF(COUNT(H4:H42)=0,0,COUNT(H4:H42)) -> 0 | I48: =IF(COUNT(J4:J42)=0,0,COUNT(J4:J42)) -> 0 | J48: 0 | K48: 0 | L48: 1 | M48: 0 | N48: 0 | O48: 0 | P48: 0 | Q48: 0 | R48: 0 | S48: 0 | T48: 0 | U48: 0 | V48: 0 | W48: 0 | X48: 0 | Y48: 0 | Z48: 0 | AA48: 0 | AB48: 1 | AC48: 0 | AD48: 0 | AE48: 0 | AF48: 1 | AG48: 0 | AH48: 0 | AI48: 0 | AJ48: 0 | AK48: 0 | AL48: 0 | AM48: 0 | AN48: 0 | AO48: 0 | AP48: 0 | AQ48: 0 | AR48: 0 | AS48: 0 | AT48: 1 | AU48: 1 | AV48: 0 | AW48: 0 | AX48: 0 | AY48: 0 | AZ48: 0 | BA48: 0 | BB48: 0 | BC48: 0 | BD48: 0 | BE48: 0 | BF48: 0 | BG48: 0 | BH48: 1 | BI48: 0 | BJ48: 0 | BK48: 0 | BL48: 0 | BM48: 0 | BN48: 0 | BO48: 0 | BP48: 0 | BQ48: 0 | BR48: 0 | BS48: 0 | BT48: 0 | BU48: =IF(COUNT(BV4:BV42)=0,0,COUNT(BV4:BV42)) -> 0 | BV48: 0 | BW48: 0 | BX48: 0 | BY48: 0 | BZ48: 0 | CA48: 0 | CB48: 0 | CC48: 0 | CD48: 1 | CE48: 0
A49: 3 | C49: ="Porteur de ("&G49+I49+K49+M49+O49+Q49+S49+U49+W49+Y49+AA49+AC49+AE49+AG49+AI49+AK49+AM49+AO49+AQ49+AS49+AU49+AW49+AY49+BA49+BC49+BE49+BG49+BI49+BK49+BM49+BO49+BQ49+BS49+BU49+BW49+BY49+CA49+CC49+CE49&")" -> Porteur de (2383) | E49: =G49+I49+K49+M49+O49+Q49+S49+U49+W49+Y49+AA49+AC49+AE49+AG49+AI49+AK49+AM49+AO49+AQ49+AS49+AU49+AW49+AY49+BA49+BC49+BE49+BG49+BI49+BK49+BM49+BO49+BQ49+BS49+BU49+BW49+BY49+CA49+CC49+CE49 -> 2383 | G49: =IF(SUM(G4:H42)=0,0,SUM(G4:H42)) -> 0 | I49: =IF(SUM(I4:J42)=0,0,SUM(I4:J42)) -> 0 | J49: 0 | K49: 0 | L49: 406 | M49: 406 | N49: 0 | O49: 0 | P49: 0 | Q49: 0 | R49: 0 | S49: 0 | T49: 0 | U49: 0 | V49: 0 | W49: 0 | X49: 0 | Y49: 0 | Z49: 0 | AA49: 0 | AB49: 444 | AC49: 444 | AD49: 0 | AE49: 0 | AF49: 353 | AG49: 353 | AH49: 0 | AI49: 0 | AJ49: 0 | AK49: 0 | AL49: 0 | AM49: 0 | AN49: 0 | AO49: 0 | AP49: 0 | AQ49: 0 | AR49: 0 | AS49: 0 | AT49: 187 | AU49: 493 | AV49: 306 | AW49: 0 | AX49: 0 | AY49: 0 | AZ49: 0 | BA49: 0 | BB49: 0 | BC49: 0 | BD49: 0 | BE49: 0 | BF49: 0 | BG49: 0 | BH49: 379 | BI49: 379 | BJ49: 0 | BK49: 0 | BL49: 0 | BM49: 0 | BN49: 0 | BO49: 0 | BP49: 0 | BQ49: 0 | BR49: 0 | BS49: 0 | BT49: 0 | BU49: =IF(SUM(BU4:BV42)=0,0,SUM(BU4:BV42)) -> 0 | BV49: 0 | BW49: 0 | BX49: 0 | BY49: 0 | BZ49: 0 | CA49: 0 | CB49: 0 | CC49: 0 | CD49: 308 | CE49: 308
A50: =10%*(E44+E45) -> 0 | C50: ="Proprio de ("&SUM(G50:CE50)&")" -> Proprio de (9922) | E50: =SUM(G50:CE50) -> 9922 | G50: =G2 -> 250 | H50: 0 | I50: 434 | J50: 0 | K50: 7 | L50: 0 | M50: 406 | N50: 0 | O50: 321 | P50: 0 | Q50: 323 | R50: 0 | S50: 43 | T50: 0 | U50: 285 | V50: 0 | W50: 249 | X50: 0 | Y50: 281 | Z50: 0 | AA50: 633 | AB50: 0 | AC50: 444 | AD50: 0 | AE50: 7 | AF50: 0 | AG50: 353 | AH50: 0 | AI50: 36 | AJ50: 0 | AK50: 218 | AL50: 0 | AM50: =AM2 -> 306 | AN50: 0 | AO50: 245 | AP50: 0 | AQ50: 202 | AR50: 0 | AS50: 230 | AT50: 0 | AU50: 187 | AV50: 0 | AW50: 214 | AX50: 0 | AY50: 337 | AZ50: 0 | BA50: 340 | BB50: 0 | BC50: 265 | BD50: 0 | BE50: 264 | BF50: 0 | BG50: 201 | BH50: 0 | BI50: 379 | BJ50: 0 | BK50: 265 | BL50: 0 | BM50: 51 | BN50: 0 | BO50: 317 | BP50: 0 | BQ50: 265 | BR50: 0 | BS50: 268 | BT50: =BT2 -> 0 | BU50: 210 | BV50: 0 | BW50: 301 | BX50: 0 | BY50: 245 | BZ50: 0 | CA50: 23 | CB50: 0 | CC50: 209 | CD50: 0 | CE50: 308
C51: ="Max : (3 mandats et 10%) "&"3 mandats "&" et "&(10%*(SUMIF(E4:E42,"P",C4:C42)+E45))&" tantièmes maxi." -> Max : (3 mandats et 10%) 3 mandats et 207,7 tantièmes maxi.
G52: =G3 -> Azemard | H52: =LEFT(H3,5) ->  | I52: =I3 -> Barthes | J52: 0 | K52: Berthezene | L52: 0 | M52: Boituzat | N52: 0 | O52: Crédit Agric. | P52: 0 | Q52: Carayol | R52: 0 | S52: Catteau | T52: 0 | U52: Decarne | V52: 0 | W52: Desbordes | X52: 0 | Y52: Diconne | Z52: 0 | AA52: DKS | AB52: 0 | AC52: Dugied | AD52: 0 | AE52: Fadda | AF52: 0 | AG52: Fraval | AH52: 0 | AI52: Gallard Justeau | AJ52: 0 | AK52: Gerbaud | AL52: 0 | AM52: Hamelin | AN52: 0 | AO52: Hugo | AP52: 0 | AQ52: Leveau | AR52: 0 | AS52: Mandrile | AT52: 0 | AU52: Martinez | AV52: 0 | AW52: Megie | AX52: 0 | AY52: Morana F. | AZ52: 0 | BA52: Morana AM | BB52: 0 | BC52: Morana L | BD52: 0 | BE52: Morana P | BF52: 0 | BG52: Optimo SCI | BH52: 0 | BI52: Ortega J. | BJ52: 0 | BK52: Ortega S. | BL52: 0 | BM52: Piochot | BN52: 0 | BO52: Pouillot | BP52: 0 | BQ52: Ramirez | BR52: 0 | BS52: Segura Mari | BT52: 0 | BU52: =BU3 -> Simoncini | BV52: 0 | BW52: Vautravers | BX52: 0 | BY52: Ventajou | BZ52: 0 | CA52: Vernet | CB52: 0 | CC52: Villard Toddi | CD52: 0 | CE52: Vivona

Sheet Vote
C2: Suivi vote
H3: ò Saisir ò
D4: Nom | E4: Proprio | F4: Porteur | G4: Total | H4: Pour | J4: Contre | L4: Abstention
C5: =IF(D5="","",1) -> 1 | D5: =IF(Liste!L3="P",Liste!J3,"") -> Boituzat | E5: =IF(D5="","",VLOOKUP(D5,liste2,2)) -> 406 | F5: =IF(Liste!L3="P",Liste!M3,"") -> 0 | G5: =IF(D5="","",E5+F5) -> 406 | I5: =IF(D5="",0,IF(H5="X",G5,0)) -> 0 | K5: =IF(D5="",0,IF(J5="X",G5,0)) -> 0 | L5: =IF(AND(H5="X",J5="X"),"ERREUR",IF(D5="","",IF(OR(H5="X",J5="X"),"","X"))) -> X | M5: =IF(D5="",0,IF(L5="X",G5,0)) -> 406 | N5: ð Effacer pour nouveau vote ð
C6: =IF(D6="","",C5+1) -> 2 | D6: =IF(Liste!L4="P",Liste!J4,"") -> Dugied | E6: 444 | F6: =IF(Liste!L4="P",Liste!M4,"") -> 0 | G6: =IF(D6="","",E6+F6) -> 444 | I6: =IF(D6="",0,IF(H6="X",G6,0)) -> 0 | K6: =IF(D6="",0,IF(J6="X",G6,0)) -> 0 | L6: =IF(AND(H6="X",J6="X"),"ERREUR",IF(D6="","",IF(OR(H6="X",J6="X"),"","X"))) -> X | M6: =IF(D6="",0,IF(L6="X",G6,0)) -> 444
C7: =IF(D7="","",C6+1) -> 3 | D7: =IF(Liste!L5="P",Liste!J5,"") -> Fraval | E7: 353 | F7: =IF(Liste!L5="P",Liste!M5,"") -> 0 | G7: 353 | I7: 0 | K7: 0 | L7: X | M7: 353
C8: 4 | D8: =IF(Liste!L6="P",Liste!J6,"") -> Martinez | E8: 187 | F8: =IF(Liste!L6="P",Liste!M6,"") -> 306 | G8: 493 | I8: 0 | K8: 0 | L8: X | M8: 493
C9: 5 | D9: =IF(Liste!L7="P",Liste!J7,"") -> Ortega J. | E9: 379 | F9: =IF(Liste!L7="P",Liste!M7,"") -> 0 | G9: 379 | I9: 0 | K9: 0 | L9: X | M9: 379
C10: =IF(D10="","",C9+1) -> 6 | D10: =IF(Liste!L8="P",Liste!J8,"") -> Vivona | E10: =IF(D10="","",VLOOKUP(D10,liste2,2)) -> 308 | F10: =IF(Liste!L8="P",Liste!M8,"") -> 0 | G10: =IF(D10="","",E10+F10) -> 308 | I10: 0 | K10: 0 | L10: X | M10: 308
D11: =IF(Liste!L9="P",Liste!J9,"") ->  | F11: =IF(Liste!L9="P",Liste!M9,"") ->  | I11: 0 | K11: 0 | M11: 0
D12: =IF(Liste!L10="P",Liste!J10,"") ->  | F12: =IF(Liste!L10="P",Liste!M10,"") ->  | I12: 0 | K12: 0 | M12: 0
D13: =IF(Liste!L11="P",Liste!J11,"") ->  | F13: =IF(Liste!L11="P",Liste!M11,"") ->  | I13: 0 | K13: 0 | M13: 0
D14: =IF(Liste!L12="P",Liste!J12,"") ->  | F14: =IF(Liste!L12="P",Liste!M12,"") ->  | I14: 0 | K14: 0 | M14: 0
D15: =IF(Liste!L13="P",Liste!J13,"") ->  | F15: =IF(Liste!L13="P",Liste!M13,"") ->  | I15: 0 | K15: 0 | M15: 0
D16: =IF(Liste!L14="P",Liste!J14,"") ->  | F16: =IF(Liste!L14="P",Liste!M14,"") ->  | I16: 0 | K16: 0 | M16: 0
D17: =IF(Liste!L15="P",Liste!J15,"") ->  | F17: =IF(Liste!L15="P",Liste!M15,"") ->  | I17: 0 | K17: 0 | M17: 0 | N17: ð Mettre à jour liste ð
D18: =IF(Liste!L16="P",Liste!J16,"") ->  | F18: =IF(Liste!L16="P",Liste!M16,"") ->  | I18: 0 | K18: 0 | M18: 0
D19: =IF(Liste!L17="P",Liste!J17,"") ->  | F19: =IF(Liste!L17="P",Liste!M17,"") ->  | I19: 0 | K19: 0 | M19: 0
D20: =IF(Liste!L18="P",Liste!J18,"") ->  | F20: =IF(Liste!L18="P",Liste!M18,"") ->  | I20: 0 | K20: 0 | M20: 0
D21: =IF(Liste!L19="P",Liste!J19,"") ->  | F21: =IF(Liste!L19="P",Liste!M19,"") ->  | I21: 0 | K21: 0 | M21: 0
D22: =IF(Liste!L20="P",Liste!J20,"") ->  | F22: =IF(Liste!L20="P",Liste!M20,"") ->  | I22: 0 | K22: 0 | M22: 0
D23: =IF(Liste!L21="P",Liste!J21,"") ->  | F23: =IF(Liste!L21="P",Liste!M21,"") ->  | I23: 0 | K23: 0 | M23: 0
D24: =IF(Liste!L22="P",Liste!J22,"") ->  | F24: =IF(Liste!L22="P",Liste!M22,"") ->  | I24: 0 | K24: 0 | M24: 0
F25: Total | G25: =IF(COUNT(G5:G24)>0,SUM(G5:G24),0) -> 2383 | H25: Pour | I25: =IF(COUNT(I5:I24)=0,0,SUM(I5:I24)) -> 0 | J25: Contre | K25: =IF(COUNT(K5:K24)=0,0,SUM(K5:K24)) -> 0 | L25: Abstention | M25: =IF(COUNT(M5:M24)=0,0,SUM(M5:M24)) -> 2383
E26: Exprimés (Hors abstentions) : | F26: Tantièmes | G26: =H26+J26 -> 0 | H26: =I26 -> 0 | I26: =SUM(I5:I25) -> 0 | J26: =K26 -> 0 | K26: =SUM(K5:K24) -> 0 | L26: =M26 -> 2383 | M26: =SUM(M5:M24) -> 2383
F27: Nombre | G27: =SUM(H27:L27) -> 6 | H27: =COUNTA(H5:H24) -> 0 | J27: =COUNTA(J5:J24) -> 0 | L27: =COUNTIF(L5:L24,"X") -> 6
E28: ="Présents + pouvoirs : "&COUNTIF(Présence!E4:E42,"P")&" personnes présentes, "&COUNT(F5:F24)&"pouvoirs, soit "&SUM(G5:G24)&" tantièmes" -> Présents + pouvoirs : 6 personnes présentes, 6pouvoirs, soit 2383 tantièmes
F29: 1er tour | G29: Si besoin ð | H29: 2ème tour | J29: Décision : | L29: =F29 -> 1er tour | N29: =H29 -> 2ème tour | O29: Majorité
D30: Majorité | E30: Simple Art24 | F30: =Présence!U44 -> 1346 | H30: // | L30: =IF(H26>=F30,"Adopté","Refusé") -> Refusé | N30: // | O30: =E30 -> Simple Art24
E31: Absolue Art25 | F31: =Présence!U45 -> 4962 | H31: =Présence!AA45 -> 1346 | L31: =IF(H26>=F31,"Adpoté","Refusé") -> Refusé | N31: =IF(H26>=H31,"Adopté","Refusé") -> Refusé | O31: =E31 -> Absolue Art25
E32: Double Art26 | F32: =Présence!U46 -> 6616 | H32: // | L32: =IF(H26>=F32,"Adpoté","Refusé") -> Refusé | N32: // | O32: Double Art26

Sheet Emploi
B3: Mode d'emploi du classeur | F3: Signification des icones | J3: Signification des icones
B5: Etape 1 | F5: Icone | H5: Utilisation | J5: Icone | L5: Utilisation
C6: Clic icone
H7: Accès à l'accueil du classeur | L7: Mettre à jour les modifications pour la feuille de Vote
C8: Vérifier la liste des copropriétaires
C9: Vérifier les tantièmes possédés
B11: Etape 2
C12: Clic icone
H13: Accès liste copropriétaires+tantièmes possédés | L13: Enregistrer les modifications
C14: Saisir le statut lors de l'AG
D15: P : Présent
D16: A : Absent
D17: M : Mandat donné
C18: Affecter les mandats au présents
C19: Mettre à jour avec icone
H20: Accés état de présence lors de l'AG et portage pouvoirs | L20: Accès à cette feuille
B22: Etape 3
C23: Clic icone
H24: Accès saisie des votes et décision selon type de majorité | L24: Quitter Excel. A bientôt…
C25: Saisir les votes
